Cogmind - Beta 17.1 @@@ ROGUE MODE // 2026.09.02 @ 03:25:19 Player: cptwinky Result: Escaped! Performance ------------- Evolutions (9) 4500 Regions Visited (32) 6400 Robots Destroyed (707) 3535 Value Destroyed (42607) 42607 Prototype IDs (153) 3060 Alien Tech Used (5) 1000 Bonus (28513) 28513 TOTAL SCORE: 89615 Bonus ------- High Alert Combat Kills 6975 Follower Combat Kills 5536 Hunted by Unchained 500 Entered Garrisons 2000 Used RIF Installer 7000 Network Hubs Disabled 200 Met Zhirov 300 Built Enhanced Grunts 300 A7 Reached Mainframe 300 Met R17 at Cetus 500 Met R17 at Research 2000 Scanned by Researcher 500 Win 3000 Friendly Fire -598 Cogmind --------- Core Integrity 1475/1600 Matter 161/300 Energy 1559/1570 System Corruption 3% Temperature Cool (4) Movement Walking (110) Location To Epsilon Eridani Parts ------- > --- POWER (3) -------- Micro Antimatter Reactor Hybrid Graviton Reactor Concept Zero-point Core > --- PROPULSION (6) --- Experimental Armored Exoskeleton Concept Biometal Exoskeleton > --- UTILITY (13) ----- 2N-1CE's Frost Array Concept Thermoelectric Network Concept Antigrav Storage Unit Concept Core Analysis Suite Concept Core Analysis Suite Concept Cloak Mesh Concept Cloak Mesh Concept RG22 Armor (fused) Graphene Brace Experimental EM Shield Improved Hacking Suite Relay Coupler [NC] (2) Concept Matter Streamer > --- WEAPON (3) ------- Null Cannon Concept Plasma Driver Concept Plasma Driver > --- INVENTORY (25) --- Experimental Armored Exoskeleton Concept Biometal Exoskeleton Concept Chromion Battery (800) Concept NT7 Matterbank (750) Crosscalibrator Transdimensional Reconstructor Compact HERF Cannon Concept Plasma Driver Concept XC Strikerail Perforator Concept Helical Railcannon Concept Tiamat Rocket Array Concept Smart ZDS Advanced Datajack Advanced Remote Datajack Concept Deflector Sword Peak State ------------ > --- POWER ------------ Micro Antimatter Reactor Hybrid Graviton Reactor Concept Zero-point Core > --- PROPULSION ------- Experimental Armored Exoskeleton Concept Biometal Exoskeleton > --- UTILITY ---------- 2N-1CE's Frost Array Concept Thermoelectric Network Concept Antigrav Storage Unit Concept Core Analysis Suite Concept Core Analysis Suite Concept Cloak Mesh Concept Cloak Mesh Centrium Medium Armor Plating Concept RG22 Armor Graphene Brace Concept Antimissile System Improved Hacking Suite Relay Coupler [NC] > --- WEAPON ----------- Concept Disintegration Ray Concept Plasma Driver Concept Helical Railcannon > --- INVENTORY -------- Experimental Armored Exoskeleton Concept Biometal Exoskeleton Concept Chromion Battery Concept NT7 Matterbank Experimental EM Shield Concept Matter Streamer Crosscalibrator Transdimensional Reconstructor Compact HERF Cannon Null Cannon Concept Plasma Driver Concept Plasma Driver Concept XC Strikerail Perforator Concept Tiamat Rocket Array Concept Smart ZDS Advanced Datajack Advanced Remote Datajack Concept Deflector Sword [Rating: 296] Favorites ----------- Power Cooled Antimatter Reactor Engine Subdweller Power Source Power Core Enhanced Nuclear Core Reactor Cooled Antimatter Reactor Propulsion Improved Heavy Treads Treads Improved Heavy Treads Leg Experimental Armored Exoskeleton Wheel Subdweller Monowheel Utility Huge Storage Unit Device Advanced Cooling System Storage Huge Storage Unit Processor Experimental Targeting Computer Hackware Relay Coupler [Sentry] Protection Centrium Medium Armor Plating Weapon Hypervelocity Mass Driver Energy Gun Heavy Particle Gun Energy Cannon Enhanced Nova Cannon Ballistic Gun Coil Gun Ballistic Cannon Hypervelocity Mass Driver Launcher Subdweller Shrapnel Launcher Special Weapon Improved Remote Datajack Impact Weapon Hammer Slashing Weapon Makeshift Axe Piercing Weapon Experimental Jetlance Special Melee Weapon Improved Datajack Build | -11 -10 -10 -8 -8 -8 -8 -7 -7 -7 -7 -6 -6 -6 -6 -6 -6 -6 -5 -5 -4 -4 -4 -4 -4 -4 -3 -3 -3 -2 -2 -2 -1 ------- Run | Yrd Mat Sub Mat Gar Mat Gar Fac Gar Fac Gar Fac Gar Ext Cet Arc Hub Gar Fac Gar Fac Was Fac Gar Fac Gar Res Tes Gar Res Qua Frg Acc Slots Evolved 18 | . . . 4 . . . 2 . . . 2 . . . . . . 2 . 2 . . . . . 2 . . 2 . . 2 Power 2 | . . . . . . . . . . . 1 . . . . . . . . . . . . . . 1 . . . . . . Propulsion 4 | . . . 1 . . . 1 . . . . . . . . . . 1 . 1 . . . . . . . . . . . . Utility 11 | . . . 2 . . . 1 . . . 1 . . . . . . 1 . 1 . . . . . 1 . . 2 . . 2 Weapon 1 | . . . 1 . . . . . . . . . . . . . . . . . . . . . . . . . . . . . Parts Attached 419 | 6 12 27 18 17 26 8 2 18 4 . 19 23 10 10 2 4 18 10 11 15 . 5 19 6 24 5 21 4 8 12 48 7 Power 53 | 1 1 4 4 2 3 . . . 2 . 3 3 1 2 . . 2 . 4 . . 1 2 . 2 1 5 . 1 2 7 . Engine 15 | 1 1 3 3 1 3 . . . . . 1 2 . . . . . . . . . . . . . . . . . . . . Core 14 | . . 1 1 1 . . . . 2 . 2 . 1 1 . . . . 2 . . . 1 . . 1 . . . . 1 . Reactor 24 | . . . . . . . . . . . . 1 . 1 . . 2 . 2 . . 1 1 . 2 . 5 . 1 2 6 . Propulsion 63 | 2 . 5 5 3 7 1 . 5 . . 3 5 . 3 . . 1 1 3 4 . . 2 1 1 . 2 . 1 2 6 . Treads 56 | 2 . 3 3 3 7 1 . 5 . . 3 5 . 3 . . . 1 3 4 . . 2 1 1 . 2 . 1 2 4 . Leg 3 | . . . . . . . . . . . . . . . . . 1 . . . . . . . . . . . . . 2 . Wheel 4 | . . 2 2 . . . . . . . . . . . . . . . . . . . . . . . . . . . . . Hover . | . . . . . . . . . . . . . . . . . . . . . . . . . . . . . . . . . Flight . | . . . . . . . . . . . . . . . . . . . . . . . . . . . . . . . . . Utility 179 | 1 7 4 4 7 8 2 2 8 1 . 7 7 7 2 1 4 7 8 1 9 . 3 8 3 16 3 6 2 4 7 26 4 Device 74 | . . 2 2 5 1 1 . 3 . . 3 5 2 . 1 . 6 4 . 6 . 1 4 1 5 2 4 . 1 4 10 1 Storage 11 | 1 3 . . . . . . 1 1 . . . . . . . . . . . . . . . 2 1 . . . 1 1 . Processor 17 | . . . . . 2 . 1 1 . . . . . . . . . 2 . 1 . . . . 4 . 1 . . 1 4 . Hackware 40 | . . . 1 . 1 . 1 1 . . 3 . 2 . . 4 1 2 . 2 . 2 4 1 4 . . 2 2 1 3 3 Protection 37 | . 4 2 1 2 4 1 . 2 . . 1 2 3 2 . . . . 1 . . . . 1 1 . 1 . 1 . 8 . Artifact . | . . . . . . . . . . . . . . . . . . . . . . . . . . . . . . . . . Weapon 124 | 2 4 14 5 5 8 5 . 5 1 . 6 8 2 3 1 . 8 1 3 2 . 1 7 2 5 1 8 2 2 1 9 3 Energy Gun 17 | 1 1 1 2 2 1 2 . . 1 . 1 1 . 1 . . 1 . . . . . . . . . . . . . 2 . Energy Cannon 13 | . 1 1 . . . . . . . . . . . . 1 . 1 . . 1 . . . 1 1 . 1 . 2 1 2 . Ballistic Gun 48 | 1 . 9 2 1 6 1 . 2 . . 3 5 1 2 . . 6 . 2 1 . . 4 . 1 . . . . . . 1 Ballistic Cannon 14 | . . . . . . . . . . . . . 1 . . . . . . . . . 3 1 . 1 5 . . . 3 . Launcher 17 | . . 2 1 . . 1 . 2 . . 2 2 . . . . . 1 . . . 1 . . 1 . 1 1 . . . 2 Special Weapon 7 | . . . . 2 1 . . 1 . . . . . . . . . . 1 . . . . . . . 1 1 . . . . Impact Weapon 1 | . 1 . . . . . . . . . . . . . . . . . . . . . . . . . . . . . . . Slashing Weapon 2 | . . 1 . . . . . . . . . . . . . . . . . . . . . . . . . . . . 1 . Piercing Weapon 2 | . . . . . . . . . . . . . . . . . . . . . . . . . 1 . . . . . 1 . Special Melee Weapon 3 | . 1 . . . . 1 . . . . . . . . . . . . . . . . . . 1 . . . . . . . Unidentified Prototypes 53 | . . . 2 . 3 . . 1 1 . 4 1 1 4 . . 7 2 . 1 . 1 . . 3 . 9 . 1 4 8 . Corrupted Parts 11 | . . . . . . . . . . . . . . 1 . . 8 . . . . . . . . . 1 . . . 1 . System Corruption 66 | . . . . . . . . . . . . . . 3 . . 50 . . . . . . . . . 6 . . . 7 . Parts Lost 51 | . 1 8 . 6 2 1 . 1 . . 6 . 1 . . . . . 3 . . 1 1 . 2 . . . . 1 14 3 Power 11 | . . 2 . 2 . . . . . . 1 . . . . . . . 2 . . . . . 1 . . . . . 3 . Propulsion 6 | . . 3 . . . . . . . . 1 . . . . . . . . . . . . . . . . . . . 2 . Utility 25 | . 1 2 . 3 2 1 . 1 . . 2 . 1 . . . . . . . . 1 . . 1 . . . . 1 7 2 Weapon 9 | . . 1 . 1 . . . . . . 2 . . . . . . . 1 . . . 1 . . . . . . . 2 1 Highest Loss Streak 4 | . 1 3 . 1 1 1 . 1 . . 4 . 1 . . . . . 1 . . 1 1 . 2 . . . . 1 4 2 To Critical Strikes 2 | . . . . . . . . . . . . . . . . . . . 1 . . . . . 1 . . . . . . . Average Backups 20 | 3 12 18 17 19 19 19 19 18 20 22 21 23 22 22 23 22 21 21 21 22 23 22 22 22 22 23 22 21 22 22 21 18 Power . | . 1 . . 1 1 1 1 1 1 2 . . . 1 1 1 1 1 . . . . . 1 1 1 . 1 1 . . . Propulsion 1 | 2 3 3 2 3 2 3 2 1 2 2 1 1 2 1 2 2 2 2 2 1 1 1 1 . . . . . . . . 2 Utility 8 | . 3 6 6 7 6 7 7 6 7 9 8 10 9 8 8 7 6 6 8 10 11 10 11 10 10 11 12 12 12 10 7 5 Weapon 6 | . 4 6 5 4 4 4 5 5 5 5 6 7 7 7 8 8 7 8 7 8 7 7 6 6 6 7 5 5 6 6 8 8 Tool/Special . | . . . . . . . . . . . . . . . . . . . . . . . . . . . . . . . . . Unused Backups 70 | . 5 8 1 4 3 2 . 4 1 . 1 4 2 . . . 1 1 1 . . 1 2 . 2 3 6 3 . 1 8 6 Power 5 | . . . . . 1 . . . 1 . . . 1 . . . . . . . . . . . . 1 . . . . 1 . Propulsion 8 | . . 4 . . 1 . . 1 . . . . . . . . . . . . . . . . . . . . . . . 2 Utility 28 | . 1 . . 2 . 2 . 2 . . . 3 . . . . 1 1 1 . . 1 1 . 2 . 3 3 . 1 2 2 Weapon 26 | . 4 4 1 1 1 . . 1 . . 1 1 1 . . . . . . . . . 1 . . 2 2 . . . 5 1 Tool/Special 3 | . . . . 1 . . . . . . . . . . . . . . . . . . . . . . 1 . . . . 1 Average Slot Usage (%) 88 | . 95 99 88 98 99 100 99 89 84 84 85 89 85 85 86 82 81 81 87 85 89 88 84 82 83 84 84 85 77 77 83 82 Engine 3 | . 14 8 13 13 7 9 7 7 1 . 2 5 3 . . . . . . . . . . . . . . . . . . . Core 2 | . . 5 3 1 1 . . . 5 7 10 7 2 4 . . . . . 5 5 1 1 5 1 4 . . . . . 4 Reactor 5 | . . . . . . . . . . . . . 6 8 13 13 13 11 10 5 5 8 8 5 8 9 13 14 13 13 12 8 Treads 17 | . 27 23 14 24 27 27 30 20 15 15 12 16 13 13 13 13 12 11 16 16 21 21 16 15 15 14 13 14 13 13 11 . Device 9 | . . 11 9 17 10 9 10 5 . . 4 13 7 12 13 6 12 10 10 5 5 5 7 14 13 13 8 9 4 7 14 22 Storage 7 | . 14 14 4 8 9 9 7 7 7 7 6 6 6 6 6 6 6 5 5 5 5 5 5 5 5 4 4 4 4 4 4 4 Processor 7 | . . . . . 1 . 6 11 15 15 13 13 7 6 6 6 6 8 11 10 10 8 5 5 7 14 19 19 17 17 9 8 Hackware 4 | . . . 4 . 6 . 3 4 7 7 6 . 4 . . 4 . 4 5 10 15 16 17 9 8 4 4 4 8 3 8 8 Protection 6 | . 9 2 4 6 8 17 7 6 7 7 5 6 11 13 13 10 12 7 5 8 5 5 5 5 5 4 3 3 3 4 8 7 Energy Gun 2 | . 12 2 2 7 8 5 6 1 . . . 4 . . . . . . . . . . . . . . . . . . 1 1 Energy Cannon 2 | . 4 6 3 . . . . . . . . . . . 1 . 3 . . . . 2 . . 4 4 3 3 3 5 6 5 Ballistic Gun 10 | . 9 16 10 16 18 19 15 18 23 21 18 13 17 19 17 15 10 16 16 13 12 11 9 3 3 1 . . . . . 1 Ballistic Cannon 2 | . . . . . . . . . . . . . . . . . . . . . . . 2 9 6 6 8 9 8 6 3 3 Peak Build Rating 296 | 6 11 21 77 73 37 39 46 72 73 75 85 89 88 110 112 116 129 138 137 143 138 136 151 151 160 169 185 184 205 220 282 296 Average Rating 108 | 5 8 17 70 40 32 37 44 60 72 72 81 82 86 98 110 107 119 129 133 136 135 133 140 146 151 168 171 179 198 203 224 286 On Entrance 107 | . 6 11 20 72 35 36 38 46 69 73 75 84 88 86 110 111 114 129 134 124 132 135 134 147 147 155 168 180 180 200 214 279 Avg Prop Armor Cover (%) 10 | . . 14 5 1 . . . . . . . . . . . . 3 . . . . . . . . . . . . . . . Naked Turns . | . . . . . . . . . . . . . . . . . . . . . . . . . . . . . . . . . Heaviest Build 219 | 12 56 63 137 116 66 66 67 75 109 112 127 130 137 148 152 148 165 157 148 152 141 153 171 179 183 190 196 196 216 219 210 121 Greatest Support 275 | 40 40 40 63 63 69 67 87 150 150 150 150 150 150 155 155 155 155 160 183 240 214 214 240 240 240 235 240 240 240 235 275 158 Greatest Overweight (x) 6 | . 1 2 6 1 1 1 . . . . . 1 . . . . 2 1 . . . . . . . . 1 . . . 1 . Average Overweight (x) . | . . 1 4 1 . . . . . . . . . . . . . . . . . . . . . . . . . . . . Largest Inventory Capacity 25 | 8 20 20 20 20 20 20 20 20 25 25 25 25 25 25 25 25 25 25 25 25 25 25 25 25 25 25 25 25 25 25 25 25 Average Capacity 22 | 7 13 20 20 20 20 20 20 20 24 25 25 25 25 25 25 25 25 25 25 25 25 25 25 25 25 25 25 25 25 25 25 25 Most Carried 25 | 7 16 20 20 20 20 20 20 20 23 25 25 25 25 25 25 25 25 25 25 25 25 25 25 25 25 25 25 25 25 25 25 25 Average Carried 22 | 4 12 19 18 19 19 19 19 19 22 24 22 24 24 24 25 24 24 24 24 24 25 24 24 24 24 24 24 24 24 24 24 23 Final Capacity 25 | 8 20 20 20 20 20 20 20 20 25 25 25 25 25 25 25 25 25 25 25 25 25 25 25 25 25 25 25 25 25 25 25 25 Final Carried 25 | 7 16 20 20 20 20 20 20 20 23 25 24 25 25 25 25 24 25 25 25 25 25 25 25 25 25 25 25 25 25 24 25 21 Class Distribution -------------------- 25% | Botlord-Tank 22% | Scavenger-Tank 16% | Mutant 11% | Tank 5% | Scavenger-Gunner 4% | Scavenger-Mutant 3% | Bothacker-Tank Dominant Class ---------------- Mutant | -10/Materials Mutant | -10/Subcaves Scavenger-Tank | -8/Materials Scavenger-Tank | -8/Garrison Tank | -8/Materials Tank | -8/Garrison Gunner | -7/Factory Scavenger-Tank | -7/Garrison Tank | -7/Factory Bothacker-Tank | -7/Garrison Tank | -6/Factory Scavenger-Tank | -6/Garrison Botlord-Tank | -6/Extension Commander-Tank | -6/Cetus Commander-Tank | -6/Archives Bothacker-Tank | -6/Hub_04(d) Scavenger-Tank | -6/Garrison Scavenger-Tank | -5/Factory Botlord-Gunner | -5/Garrison Botlord-Tank | -4/Factory Botlord-Tank | -4/Waste Botlord-Tank | -4/Factory Botlord-Tank | -4/Garrison Botlord-Tank | -4/Factory Botlord-Tank | -4/Garrison Botlord-Tank | -3/Research Botlord-Tank | -3/Testing Botlord-Tank | -3/Garrison Botlord-Tank | -2/Research Botlord-Tank | -2/Quarantine Scavenger-Tank | -2/Protoforge Scavenger-Tank | -1/Access Resources | -11 -10 -10 -8 -8 -8 -8 -7 -7 -7 -7 -6 -6 -6 -6 -6 -6 -6 -5 -5 -4 -4 -4 -4 -4 -4 -3 -3 -3 -2 -2 -2 -1 ----------- Run | Yrd Mat Sub Mat Gar Mat Gar Fac Gar Fac Gar Fac Gar Ext Cet Arc Hub Gar Fac Gar Fac Was Fac Gar Fac Gar Res Tes Gar Res Qua Frg Acc Matter Collected 30223 | 281 436 1357 519 1201 934 926 152 935 52 292 1452 1064 641 384 30 254 896 976 878 492 . 657 1285 830 2448 190 1462 936 1243 1691 3640 1689 Remotely 1999 | . . . . . . . . . . . . . . . . . . . . . . . . . . . 181 . 332 217 337 932 Salvage Created 34481 | 127 452 701 745 1443 1378 813 64 1539 . 325 1938 1510 439 238 70 276 892 1535 1334 784 . 507 1040 329 2431 195 1708 1087 2070 2191 4160 2160 Parts 1738 | 6 24 42 39 85 67 59 3 61 . 29 96 81 20 11 8 15 38 63 58 61 . 17 65 16 92 14 120 59 90 103 215 81 Haulers Intercepted 11 | . 2 . 1 . 4 . . . . . 3 . . . . . . . . . . . . . . . 1 . . . . . Recyclers Shooed 14 | 1 1 . 1 . 1 . . . . . . . 1 . . . . 3 . 2 . . . 1 . . 1 . 1 . . 1 Parts Field Recycled 21 | . . . . . . . . . . . . . . . . . . 21 . . . . . . . . . . . . . . Retrieved Matter 149 | . . . . . . . . . . . . . . . . . . 149 . . . . . . . . . . . . . . Parts Self-Destructed 2 | . . 2 . . . . . . . . . . . . . . . . . . . . . . . . . . . . . . Prevented . | . . . . . . . . . . . . . . . . . . . . . . . . . . . . . . . . . Parts Restored 9 | . . . . . . . . . . . . . . . . . . 1 . . . . . . . . . . . . 8 . Broken 1 | . . . . . . . . . . . . . . . . . . 1 . . . . . . . . . . . . . . Faulty 8 | . . . . . . . . . . . . . . . . . . . . . . . . . . . . . . . 8 . Kills | -11 -10 -10 -8 -8 -8 -8 -7 -7 -7 -7 -6 -6 -6 -6 -6 -6 -6 -5 -5 -4 -4 -4 -4 -4 -4 -3 -3 -3 -2 -2 -2 -1 ------- Run | Yrd Mat Sub Mat Gar Mat Gar Fac Gar Fac Gar Fac Gar Ext Cet Arc Hub Gar Fac Gar Fac Was Fac Gar Fac Gar Res Tes Gar Res Qua Frg Acc Combat Hostiles Destroyed 613 | . 9 25 17 33 26 24 1 22 . 11 30 24 8 2 . 2 13 21 31 13 . 5 37 7 41 2 21 21 30 29 75 33 Melee 8 | . . . . . . . . 1 . . . . . . . 1 . . . . . 1 2 . 1 . . . . . 1 1 Guns 262 | . 7 7 11 33 26 18 1 13 . 3 26 18 8 2 . 1 5 21 22 9 . 1 11 1 7 2 . . . . 7 2 Cannons 186 | . . 7 3 . . . . . . . . . . . . . 3 . . . . . . 4 29 . 21 17 23 28 38 13 AOE 116 | . . 11 3 . . 6 . 8 . 8 4 6 . . . . . . 9 4 . 3 23 2 3 . . 4 7 . 3 12 Classes Destroyed 29 | 2 2 4 4 3 . 1 . 1 . . 2 1 . . . . 1 . . . . . . . 1 . 1 . . 1 5 . Worker 23 | . . . 1 . 1 . . . . . 4 . 2 . . . . 2 . 2 . 1 . 1 . 1 2 . 1 . 1 4 Builder 11 | . . . 1 . 1 . . . . . 2 . . . . . . . . 1 . 1 . . . . 2 . 1 1 1 . Tunneler 4 | 2 1 . . . . . . . . . . . . . . . . . . . . . . 1 . . . . . . . . Hauler 11 | . 2 . 1 . 4 . . . . . 3 . . . . . . . . . . . . . . . 1 . . . . . Recycler 15 | 1 . . 2 . . . . . . . . . . . . 1 . 3 . . . 2 . . . . 2 . 2 . . 2 Operator 9 | . . . . . . . . . . . 2 . . . . . . 1 . 1 . . . . . 1 . . . 2 1 1 Drone 6 | . . . . . . . . . . . . . . . . . . . . . . . . . . . . . . . 6 . Watcher 11 | . . . 1 2 1 . 1 . . . 2 . . . . . 1 . . 1 . . . . . . . . 2 . . . Swarmer 121 | . . 3 7 9 5 10 . . . 8 4 6 3 . . . 1 3 6 4 . 4 29 2 8 . . 4 5 . . . Saboteur 3 | . . . . . . . . 2 . . . . . . . . . . . . . . . . . . . . . . 1 . Grunt 163 | . 9 1 5 10 13 2 . 12 . 1 20 9 1 . . . 5 5 8 . . . 3 4 10 2 2 9 10 7 1 14 Brawler 12 | . . . . . . 2 . 1 . . . . . . . . . . 3 . . . 1 . 4 . . 1 . . . . Duelist 12 | . . . . 1 . . . 1 . . . 1 . . . . . . 1 . . . 1 . 3 . . . 1 . 3 . Researcher 4 | . . . . . . . . . . . . . . . . . . . . . . . . . . . 2 . . 1 1 . Sentry 58 | . . 1 3 8 7 1 . 6 . . . 3 3 . . 1 1 1 5 . . 1 1 . 5 . . . . 1 7 3 Specialist 14 | . . . . . . 1 . . . . . . . . . . 1 . 3 2 . . . . 3 . . 2 . . 2 . Hunter 44 | . . . 2 1 1 2 1 1 . . 2 . 1 . . . 1 . 2 2 . . 2 1 3 . . . 9 6 . 7 Programmer 109 | . . . . 3 . 6 . . . 2 3 3 . . . . 2 12 2 4 . . . . 2 . 19 4 5 12 26 4 Heavy 4 | . . . . . . . . . . . 1 . . . . . . . . 1 . . . . . . . . . . . 2 Q-Series 8 | . . . . . . . . . . . . . . . . . . . . . . . . . . . . . . 3 5 . Behemoth 9 | . . . . . . . . . . . . 2 . . . . . . . . . . 1 . 1 . . 1 . . 1 3 Cetus Guard 2 | . . . . . . . . . . . . . . 2 . . . . . . . . . . . . . . . . . . Enhanced Grunt 1 | . . . . . . . . . . . . . . . . . 1 . . . . . . . . . . . . . . . Lightning 1 | . . . . . . . . . . . . . . . . 1 . . . . . . . . . . . . . . . . Decapitator 6 | . . . . . . . . . . . . . . . . . . . . . . . . . . . . . . . 6 . Immortal 13 | . . . . . . . . . . . . . . . . . . . . . . . . . . . . . . . 13 . Striker 1 | . . . . . . . . . . . . . . . . . . . . . . . . . 1 . . . . . . . Executioner 3 | . . . . . . . . . . . . . . . . . 2 . . . . . . . 1 . . . . . . . Alpha 7 2 | . . . . . . . . . . . . . . . . . . . . . . . . . . . . . . . 2 . V-Series 3 | . . . . . . . . . . . . . . . . . . . . . . . . . . . . . . . 3 . Artisan 1 | . . 1 . . . . . . . . . . . . . . . . . . . . . . . . . . . . . . Subdweller 20 | . . 20 . . . . . . . . . . . . . . . . . . . . . . . . . . . . . . Tinkerer 1 | . . . . . . . . . . . . . . . . . . . . . . . . . . . . . . . 1 . Savage 1 | . . . . 1 . . . . . . . . . . . . . . . . . . . . . . . . . . . . Butcher 3 | . . . . . . . . . . . . . . 2 . . . . 1 . . . . . . . . . . . . . Best Kill Streak 15 | 2 2 4 9 6 7 8 1 7 . 8 7 7 4 1 . 1 2 4 13 6 . 4 15 3 6 2 6 5 6 6 6 6 Combat Bots Only 15 | . 2 4 5 6 7 8 1 7 . 8 7 7 4 1 . 1 2 3 13 4 . 4 15 2 6 2 3 5 6 6 6 5 Max Kills in Single Turn 6 | 1 1 2 6 2 2 2 1 2 . 4 4 2 2 2 . 1 1 2 3 2 . 3 4 3 3 1 2 3 3 2 3 4 Gunslinging 2 | . . . . 1 1 1 . . . . . 1 1 . . . . . 2 1 . . 1 . . . . . . . . . Exploded 4 | . . 2 3 . . 2 . 2 . 4 4 2 . . . . . . 2 2 . 3 4 2 3 . . 3 3 . 3 4 Melee 1 | . . . . . . . . 1 . . . . . . . 1 . . . . . 1 1 . 1 . . . . . 1 1 Uniques/NPCs Destroyed . | . . . . . . . . . . . . . . . . . . . . . . . . . . . . . . . . . Combat | -11 -10 -10 -8 -8 -8 -8 -7 -7 -7 -7 -6 -6 -6 -6 -6 -6 -6 -5 -5 -4 -4 -4 -4 -4 -4 -3 -3 -3 -2 -2 -2 -1 -------- Run | Yrd Mat Sub Mat Gar Mat Gar Fac Gar Fac Gar Fac Gar Ext Cet Arc Hub Gar Fac Gar Fac Was Fac Gar Fac Gar Res Tes Gar Res Qua Frg Acc Hostile Shots Fired 3093 | . 34 95 50 190 108 94 11 107 . 6 177 173 101 40 . 10 67 124 141 69 . 17 131 66 213 . 45 60 116 202 466 180 Missed 954 | . 2 31 17 37 25 35 6 37 . 4 53 63 31 14 . 2 29 42 30 25 . 9 39 24 58 . 12 23 35 51 163 57 Intercepted 31 | . . . . . . . . . . . . . . . . . . . . . . . . . . . . . . . 31 . Hits 2139 | . 32 64 33 153 83 59 5 70 . 2 124 110 70 26 . 8 38 82 111 44 . 8 92 42 155 . 33 37 81 151 303 123 Melee 84 | . . . . 3 . . . . . . . . . . . . . . . . . . 9 . 4 . . . . . 68 . Projectile 2055 | . 32 64 33 150 83 59 5 70 . 2 124 110 70 26 . 8 38 82 111 44 . 8 83 42 151 . 33 37 81 151 235 123 AOE 13 | . . . . . . . . . . . . . . . . . 1 1 . . . . . . . . . . . . 11 . Critical Strikes 148 | . . 1 . 9 3 1 . 3 . . 6 3 1 9 . 1 1 7 5 . . . 5 4 6 . 5 . 4 19 47 8 Actively Blocked 52 | . . . . . . . . . . . . . . . . . . . . . . . . . . . . . . 4 40 8 Part Disruptions 10 | . . . . . . . . . . . . . . . . . . . 3 . . . . . 1 . 2 . . 2 2 . Damage Taken 33381 | . 420 1489 397 1619 1134 819 101 775 . 23 2591 913 540 504 . 174 622 927 1862 804 . 237 1359 455 2041 14 279 347 1549 1450 7543 2393 Core 2495 | . 54 154 . 131 120 78 . 51 . . 242 49 31 59 . . 41 82 147 24 . . 59 . 180 14 5 36 89 67 657 125 Absorbed by Shields 7759 | . . . 34 547 22 . . . . 4 105 673 347 184 . 24 123 . 109 286 . 61 708 302 953 14 8 365 433 1367 1090 . Reduced by Siege Mode 195 | . . . . . . . . . . . . 39 . . . . . 6 . . . . 15 . 8 . 16 6 11 13 81 . Redirected to Shielding 174 | . . . . . . . . . . . . . . . . . . . . . . . . . . . . . . . 174 . Ignored by Resistances 4222 | . . . . . 16 14 2 4 . . . . 55 11 . . . 766 . . . . . . . . 450 35 37 677 1325 830 Regen/Repaired (Parts) 4492 | . . . 247 . 164 . . . . . 1322 . . . . . . 418 . . . . . . . . 732 . 555 286 472 296 Core Remaining (%) 67 | 100 . 16 . . . 40 . . . 92 . . . . . . 50 . 77 . . . . . 77 . . 95 . . 40 92 Volleys Fired 1679 | 7 32 74 35 93 81 42 4 45 . 11 91 63 32 13 17 10 53 61 51 34 6 16 57 27 118 13 59 38 80 97 242 77 Largest 4 | 2 2 2 4 3 3 3 3 3 . 3 3 3 3 3 3 3 3 3 3 3 1 3 3 3 3 2 3 3 3 3 3 3 Hottest 350 | 70 85 125 188 135 171 111 116 116 . 85 90 133 90 93 105 90 93 105 108 104 7 105 173 229 229 178 232 232 232 296 340 350 Shots Fired 3659 | 14 63 127 109 258 233 117 8 101 . 23 238 143 73 39 22 18 87 156 124 75 6 24 114 53 284 15 116 86 148 201 430 154 Gun 2058 | 14 63 64 97 258 230 114 8 91 . 20 224 130 61 38 9 12 54 143 114 62 . 10 84 11 52 5 . . . . 64 26 Cannon 1344 | . . 49 10 . . . . . . . . . . . 9 . 24 . . . . 9 6 36 213 10 116 81 134 195 341 111 Launcher 78 | . . 14 2 . . 3 . 8 . 3 1 4 . . . . . . 10 4 . 1 12 . 1 . . 2 4 . 2 7 Special 179 | . . . . . 3 . . 2 . . 13 9 12 1 4 6 9 13 . 9 6 4 12 6 18 . . 3 10 6 23 10 Kinetic 2247 | 7 32 52 85 182 147 78 6 83 . 20 224 91 61 38 9 12 54 143 114 62 . 10 87 40 176 8 69 52 72 95 88 50 Thermal 1058 | 7 31 65 24 76 83 36 2 8 . . . 48 . . 13 . 9 . . . . 9 3 7 97 7 47 29 62 104 219 72 Explosive 67 | . . 10 . . . 3 . 8 . 3 1 4 . . . . . . 10 . . . 12 . 1 . . 2 4 . 2 7 Electromagnetic 69 | . . . . . . . . . . . . . . . . . 24 . . 4 . 1 . . . . . . . . 40 . Entropic 79 | . . . . . . . . . . . . . . . . . . . . . . . . . . . . . . . 64 15 Robot Hit Streak 51 | 6 19 12 14 15 15 7 7 15 . 6 18 18 16 11 7 5 7 14 23 51 8 4 20 30 20 4 16 32 20 18 26 12 Robot Miss Streak 8 | 1 3 2 6 7 4 5 1 2 . 1 5 4 2 5 1 1 3 3 5 1 1 1 2 2 3 1 3 1 8 3 5 3 Penetration Max 3 | . . . . 1 . . . . . . 2 1 1 1 . . 1 1 1 1 . . . . 3 . 2 1 1 1 1 1 Secondary Targets 45 | . . . 1 6 5 2 . 2 . . 9 5 1 1 . . 1 1 7 2 . . 2 . . . . . . . . . Max Gunslinging Chain 2 | . . . 1 1 2 1 . 1 . . 1 1 1 1 . . 1 1 2 1 . . 1 . . . . . . . . . Shots Hit Robots 2442 | 9 50 85 77 142 145 65 5 103 . 13 173 132 67 29 9 18 53 109 85 66 5 11 86 33 211 6 61 59 74 116 259 86 Core Hits 1242 | 4 18 42 41 56 53 38 3 58 . 13 79 108 19 21 6 7 17 39 80 30 . 8 55 13 76 5 38 31 53 50 110 71 Critical Kills 143 | . . . . . . . . . . . 1 . . 1 . 1 2 6 5 1 . 1 2 . 12 3 22 15 21 23 20 7 Critical Parts Destroyed 143 | . 1 . 1 . . . . . . . 4 1 2 . . 1 2 15 7 . . . 3 3 19 . 21 11 17 29 5 1 Critical Strikes 337 | 1 5 1 1 1 7 1 . 3 . . 5 3 2 1 . 3 7 21 13 1 . 1 6 6 42 3 43 27 38 55 30 10 Burn 16 | 1 4 . . 1 7 1 . 2 . . . . . . . . . . . . . . . . . . . . . . . . Meltdown 25 | . . . . . . . . . . . . . . . . . . . . . . . 1 . 1 . . . . 1 17 5 Destroy 270 | . . 1 1 . . . . . . . 5 1 2 1 . 2 4 21 13 1 . 1 4 3 33 3 43 27 38 54 8 4 Blast 13 | . . . . . . . . . . . . . . . . . . . . . . . . 3 7 . . . . . 3 . Corrupt 5 | . . . . . . . . . . . . . . . . . 3 . . . . . . . . . . . . . 2 . Smash 1 | . 1 . . . . . . . . . . . . . . . . . . . . . . . . . . . . . . . Sever 7 | . . . . . . . . 1 . . . 2 . . . 1 . . . . . . 1 . 1 . . . . . . 1 Melee Attacks 225 | . 10 21 13 1 4 6 2 54 1 4 9 24 14 . . 7 . 1 . . . 1 15 . 16 . 6 7 . . 5 4 Impact 11 | . 10 1 . . . . . . . . . . . . . . . . . . . . . . . . . . . . . . Slashing 170 | . . 20 13 1 1 6 . 53 1 4 2 20 6 . . 7 . 1 . . . 1 15 . 11 . . . . . 4 4 Piercing 4 | . . . . . . . . . . . . . . . . . . . . . . . . . . . 3 . . . 1 . Sneak Attacks 70 | . 1 1 . . 3 . . 6 . . 3 4 8 . . 2 . . . . . 1 15 . 11 . 4 7 . . 4 . Combat Hostiles 15 | . 1 . . . . . . 1 . . . . . . . . . . . . . . 13 . . . . . . . . . Follow-up Attacks . | . . . . . . . . . . . . . . . . . . . . . . . . . . . . . . . . . Damage Inflicted 93862 | 112 839 3145 1981 2752 2578 1634 61 4867 . 1277 4535 4230 1212 836 132 478 1936 3819 4839 2079 . 433 5519 1206 7018 119 1731 1675 3308 3560 16491 9460 Guns 33050 | 112 570 860 1136 2752 2508 1249 52 1195 . 247 3966 2405 1167 836 107 131 968 3624 2448 1622 . 105 1312 243 395 44 . . . . 2246 750 Cannons 33583 | . . 539 229 . . . . . . . . . . . . . 924 . . . . 34 201 752 5495 54 1476 1176 1525 3463 12968 4747 Explosions 18440 | . . 1678 616 . . 379 . 1396 . 780 291 526 . . . . . . 2385 391 . 163 2850 210 359 . . 499 1579 . 612 3726 Melee 7454 | . 244 68 . . . . . 2276 . 250 121 1238 . . . 347 . . . . . 77 1156 . 720 . 139 . . . 622 196 Ramming 1126 | . 25 . . . 70 6 9 . . . 157 . 45 . . . 6 195 6 66 . 54 . 1 . 21 116 . 204 97 7 41 Kinetic 40574 | 63 260 918 1598 2062 1618 734 12 1095 . 247 3966 1428 1167 836 107 131 968 3624 2448 1622 . 105 1399 865 3569 53 1093 784 933 1592 3063 2214 Thermal 22595 | 49 310 697 383 690 890 515 40 100 . . . 1038 . . 25 . 38 . . . . 34 114 340 2370 45 383 392 592 1871 8775 2904 Explosive 16939 | . . 1462 . . . 379 . 1396 . 780 291 526 . . . . . . 2385 . . 95 2850 . 359 . . 499 1579 . 612 3726 Electromagnetic 2549 | . . . . . . . . . . . . . . . . . 924 . . 391 . 68 . . . . . . . . 1166 . Impact 244 | . 244 . . . . . . . . . . . . . . . . . . . . . . . . . . . . . . . Slashing 6993 | . . 68 . . . . . 2276 . 250 121 1238 . . . 347 . . . . . 77 1156 . 720 . . . . . 544 196 Piercing 217 | . . . . . . . . . . . . . . . . . . . . . . . . . . . 139 . . . 78 . Entropic 2625 | . . . . . . . . . . . . . . . . . . . . . . . . . . . . . . . 2246 379 Highest Corruption 54 | . . . . 5 6 6 . . 2 2 2 4 4 7 7 4 52 7 13 4 6 6 6 6 7 . 7 7 1 14 54 3 Average Corruption 8 | . . . . 4 5 6 . . 2 2 1 2 4 6 6 2 9 3 9 3 5 6 6 6 6 . 3 7 1 9 29 2 Corruption Purged 9 | . . . . . . . . . . . . . . . 3 4 2 . . . . . . . . . . . . . . . Corruption Blocked . | . . . . . . . . . . . . . . . . . . . . . . . . . . . . . . . . . Effects 829 | . . . . 13 63 28 . . 6 5 17 31 39 11 1 2 7 32 50 9 3 27 34 27 49 . 35 39 6 82 204 9 Message Errors 218 | . . . . 4 20 12 . . 3 1 6 12 9 1 1 . 3 6 12 2 1 5 11 7 11 . 7 12 3 17 48 4 Matter Fused 181 | . . . . 2 16 6 . . 1 1 3 8 6 2 . 1 1 7 9 2 1 4 2 4 13 . 9 10 2 20 50 1 Heat Flow Errors 88 | . . . . 1 3 1 . . . 1 1 5 6 1 . . 2 5 9 . . 6 1 2 5 . 4 4 . 8 23 . Energy Discharges 92 | . . . . 1 5 3 . . 1 . 1 . 5 2 . 1 . 5 8 1 1 5 4 3 5 . 4 3 1 9 23 1 Parts Rejected 20 | . . . . . 2 1 . . . . . . . . . . . . 1 . . . 1 2 1 . 1 1 . 4 6 . Parts Fused 8 | . . . . . . . . . . . 1 . . . . . . . 1 . . . 2 1 . . . 1 . . 2 . Data Loss (minor) 92 | . . . . 2 9 2 . . 1 2 2 3 5 1 . . 1 5 5 1 . 2 4 1 7 . 6 5 . 11 16 1 Data Loss (major) 26 | . . . . . . 2 . . . . 2 . 3 2 . . . 1 1 1 . 2 1 3 1 . 1 2 . . 4 . Misfires 37 | . . . . 3 2 1 . . . . 1 2 3 1 . . . 1 1 1 . 2 5 1 1 . 1 . . 3 8 . Alerts 19 | . . . . . 2 . . . . . . 1 2 1 . . . . 1 . . 1 . 2 4 . 2 . . 2 1 . Misdirections 2 | . . . . . . . . . . . . . . . . . . . . . . . . . . . . . . 1 1 . Weapon Failures 46 | . . . . . 4 . . . . . . . . . . . . 2 2 1 . . 3 1 1 . . 1 . 7 22 2 Overload Shots . | . . . . . . . . . . . . . . . . . . . . . . . . . . . . . . . . . Overflow Damage 3278 | . 85 15 65 . 9 47 . 176 . 126 43 86 . . . 6 35 36 49 16 . 39 273 85 196 . 56 70 176 123 842 624 Projectiles 1284 | . . . . . . . . . . . . . . . . . 35 . . . . . . . 78 . 21 . 21 123 767 239 Explosions 1295 | . . 15 65 . . 47 . 56 . 52 38 . . . . . . . 49 11 . . 220 85 72 . . 70 123 . 7 385 Melee 699 | . 85 . . . 9 . . 120 . 74 5 86 . . . 6 . 36 . 5 . 39 53 . 46 . 35 . 32 . 68 . Knockbacks 94 | . . . . . . . . . . . 1 . 1 . . . . 3 . . . . . 4 18 . 19 1 8 13 19 7 Impact 10 | . . . . . . . . . . . 1 . 1 . . . . 3 . . . . . . . . 4 . . . . 1 Kinetic 80 | . . . . . . . . . . . . . . . . . . . . . . . . 4 18 . 12 1 8 13 18 6 Secondary 4 | . . . . . . . . . . . . . . . . . . . . . . . . . . . 3 . . . 1 . Self-Inflicted Damage 420 | . . 81 3 . . 53 . . . . . . . . . . . . 28 . . . 11 . 26 . . . 54 . 164 . Shots 12 | . . 2 1 . . 2 . . . . . . . . . . . . 2 . . . 1 . 1 . . . 1 . 2 . Rammed 71 | . 7 . . . 8 1 . . . . 7 . 5 . . . 2 9 1 3 . 1 . 1 . 1 5 . 11 8 1 . Targets Rammed 82 | . 8 . . . 8 1 1 . . . 9 . 6 . . . 2 9 1 3 . 1 . 1 . 1 6 . 12 8 2 3 Kicked 4 | . . . . . . . . . . . . . . . . . . . . . . . . . . . . . . . 1 3 Crushed 7 | . 1 . . . . . 1 . . . 2 . 1 . . . . . . . . . . . . . 1 . 1 . . . Highest Temperature 432 | 27 159 156 353 396 306 190 38 136 . 219 376 273 277 197 . . 203 202 229 298 . 259 285 296 328 64 310 204 432 430 267 . Average Temperature 90 | 13 39 58 91 113 82 47 23 42 . 50 129 86 72 97 . . 70 89 89 93 . 78 84 88 94 26 80 72 122 101 71 . Received Heat Transfer 4872 | . 237 216 126 520 480 63 6 300 . . 630 182 85 30 . 19 81 246 374 28 . 18 312 101 160 4 16 62 69 84 198 225 Thermoelectric Energy+ 17 | . . . . . . . . . . . . . . . . . . . . . . . . . . . . . . . 17 . Effects 27 | . . . 2 8 . . . . . . 7 . . . . . . . . 1 . . . 2 1 . . . 5 1 . . Shutdowns 7 | . . . 2 . . . . . . . 2 . . . . . . . . . . . . . . . . . 2 1 . . Energy Bleed 9 | . . . . 1 . . . . . . 5 . . . . . . . . 1 . . . 1 1 . . . . . . . Interference 11 | . . . . 7 . . . . . . . . . . . . . . . . . . . 1 . . . . 3 . . . Siege Activations 28 | . . . . . . . . . . 1 . 3 . . . . . 1 . . . . 1 . 1 1 6 2 4 2 6 . Total Turns 764 | . . . . . . . . . . 11 . 72 . . . . . 50 . . . . 34 . 21 9 280 22 40 51 174 . Longest Duration 123 | . . . . . . . . . . 11 . 29 . . . . . 50 . . . . 34 . 21 9 123 13 16 42 71 . Martial Activations . | . . . . . . . . . . . . . . . . . . . . . . . . . . . . . . . . . Shielding Activations . | . . . . . . . . . . . . . . . . . . . . . . . . . . . . . . . . . Robots Disrupted 1 | . . . . . . . . . . . . . . . . . . . . . . . . . . . . . . . 1 . Combat Hostiles 1 | . . . . . . . . . . . . . . . . . . . . . . . . . . . . . . . 1 . Robots Corrupted 19 | . 2 . . . 1 . . . . . . . . . . . 4 2 . . . . . . . . 1 . . . 9 . Combat Hostiles 14 | . 2 . . . . . . . . . . . . . . . 4 . . . . . . . . . . . . . 8 . Parts Fried 30 | . . . . . . . . . . . . . . . . . 7 6 . 1 . . . . . . . . . . 16 . Impact Corruptions 13 | . 3 . . . 1 . . . . . 1 . . . . . . 3 . 1 . 1 . . . . 1 . 1 . 1 . Robots Melted 26 | . 1 . . . . . . . . . . . . . . . . . . . . . 1 . 1 . . . . 1 17 5 Combat Hostiles 25 | . . . . . . . . . . . . . . . . . . . . . . . 1 . 1 . . . . 1 17 5 Parts Melted 55 | . 2 1 . . 7 1 . 1 . . . . . . . . . 1 . . . . 2 . 1 . 2 . . 6 21 10 Heat Transferred 22051 | 222 1147 1517 592 1332 2183 925 74 333 . . . 943 . . 75 . 150 . . . . 37 111 261 2116 37 296 333 518 1628 5549 1672 Parts Sabotaged . | . . . . . . . . . . . . . . . . . . . . . . . . . . . . . . . . . Parts Stolen . | . . . . . . . . . . . . . . . . . . . . . . . . . . . . . . . . . Parts Stripped . | . . . . . . . . . . . . . . . . . . . . . . . . . . . . . . . . . Power Chain Reactions . | . . . . . . . . . . . . . . . . . . . . . . . . . . . . . . . . . Alert | -11 -10 -10 -8 -8 -8 -8 -7 -7 -7 -7 -6 -6 -6 -6 -6 -6 -6 -5 -5 -4 -4 -4 -4 -4 -4 -3 -3 -3 -2 -2 -2 -1 ------- Run | Yrd Mat Sub Mat Gar Mat Gar Fac Gar Fac Gar Fac Gar Ext Cet Arc Hub Gar Fac Gar Fac Was Fac Gar Fac Gar Res Tes Gar Res Qua Frg Acc Maximum Alert Level 4 | . . . . 4 2 3 1 3 2 2 2 4 2 1 . . 4 3 4 3 1 1 3 2 4 2 1 4 2 1 4 3 Low Security (%) 35 | 100 100 . 100 20 67 22 . 6 . 23 30 11 43 96 100 100 9 . . . . 94 1 . . . 92 7 44 11 52 20 Level 1 20 | . . . . 14 14 12 100 32 68 24 56 20 51 3 . . 5 6 . . 100 5 27 . 10 . 7 18 23 88 5 10 Level 2 22 | . . . . 23 17 44 . 31 30 51 13 15 5 . . . 10 82 23 10 . . 2 100 42 99 . 23 32 . 20 23 Level 3 15 | . . . . 21 . 21 . 29 . . . 36 . . . . 39 11 14 89 . . 69 . 38 . . 35 . . 16 45 Level 4 6 | . . . . 20 . . . . . . . 15 . . . . 34 . 62 . . . . . 9 . . 14 . . 5 . Level 5 . | . . . . . . . . . . . . . . . . . . . . . . . . . . . . . . . . . High Security . | . . . . . . . . . . . . . . . . . . . . . . . . . . . . . . . . . Max Security . | . . . . . . . . . . . . . . . . . . . . . . . . . . . . . . . . . Peak Influence 1496 | 10 75 . 186 1213 639 762 399 909 476 595 441 1114 584 201 97 89 1184 835 1496 857 274 222 1062 592 1219 695 253 1183 645 344 1215 894 Initial 785 | . . . 21 57 590 84 399 177 476 137 312 77 584 108 56 33 11 621 579 785 274 156 64 536 328 685 221 112 642 225 177 728 Average 420 | . 17 . 61 627 209 489 318 518 337 378 258 663 228 154 67 34 842 571 1074 752 251 97 692 503 721 552 71 722 304 256 398 527 Influence Increases 22649 | 15 305 110 535 1236 919 708 53 782 15 458 920 1097 617 313 91 212 1433 1293 967 508 . 368 1088 343 1191 65 654 1231 834 888 2157 1243 Destroy 0b10 Robot/C 11865 | . 180 100 340 660 520 480 20 440 . 260 600 520 280 140 20 40 600 720 620 300 . 100 710 135 675 30 360 555 450 465 1050 495 Destroy 0b10 Robot/NC 546 | 15 15 . 30 10 35 . 5 30 . 10 60 25 20 10 10 20 5 30 5 30 . 25 . 8 4 8 28 . 24 12 44 28 Destroy Leader 1562 | . 34 10 84 10 140 30 12 30 . 10 130 50 42 . . 14 50 140 40 52 . 20 58 16 40 . 58 48 100 72 152 120 Allied During Kill 1643 | . . . . 1 . . 2 5 . 41 12 13 183 150 30 74 495 160 . 26 . 3 . 20 43 . 15 315 14 2 39 . Trap Triggered on 0b10 66 | . 10 . . . . . . . . . 10 30 . . . . . . . . . . . . . . 16 . . . . . Successful Hack 453 | . 49 . 15 . 24 14 14 . . . 18 10 28 8 . . 6 54 21 7 . 12 11 20 11 11 27 . . 61 14 18 Select Force Hacks 30 | . . . . . 30 . . . . . . . . . . . . . . . . . . . . . . . . . . . Disable Machine 1110 | . . . 15 . . . . 15 15 30 60 45 45 . 30 45 30 75 30 45 . 60 30 72 24 . 96 . 12 120 168 48 Anti-Garrison Action 1891 | . . . . 400 . 100 . 150 . 100 . 250 . . . . 200 . 150 . . . 50 . 302 . . 189 . . . . Destroy Structure 2676 | . 2 . 36 5 5 24 . 82 . 7 15 49 4 5 1 4 32 84 56 48 . 148 229 72 92 16 54 100 210 108 654 534 Partial Spotted 78 | . . . . . 30 . . . . . . . . . . . . . . . . . . . . . . . 24 24 . . Lose Combat Pursuer 729 | . 15 . 15 150 135 60 . 30 . . 15 105 15 . . 15 15 30 45 . . . . . . . . 24 . 24 36 . Influence Decreases 21761 | 15 305 68 489 111 2002 76 561 127 727 60 1405 93 1536 367 135 292 266 1649 299 1221 559 500 158 896 441 890 898 238 1577 973 1258 1569 Entered New Map 7542 | . . . 21 31 623 46 363 77 433 60 283 33 530 87 85 64 6 563 249 711 509 68 28 486 141 534 173 38 501 175 138 486 Time Decay 8365 | 15 305 68 468 . 535 . 198 . 294 . 612 . 546 180 50 213 . 601 . 410 50 290 . 350 . 356 575 . 546 618 717 368 Lost Part 393 | . . . . 60 20 10 . 10 . . 60 . 10 . . . . . 30 . . . 10 . 20 . . . . 10 123 30 Lost Ally 1605 | . . . . 20 . 20 . 40 . . 150 60 . 100 . 15 110 60 20 100 . 10 120 60 280 . . 200 80 20 130 10 Purge Threat 3856 | . . . . . 824 . . . . . 300 . 450 . . . 150 425 . . . 132 . . . . 150 . 450 150 150 675 Squads Dispatched 88 | . 1 . 4 . 7 . 3 . . . 8 . . . . 2 . 7 . 4 . 3 . 6 . 5 5 . 6 7 16 4 Investigation 14 | . 1 . 2 . 3 . 2 . . . . . . . . . . 1 . . . . . 1 . 2 . . 1 . . 1 Extermination 34 | . . . . . . . . . . . 2 . . . . 1 . 3 . 2 . 1 . 1 . . 5 . 3 5 10 1 Reinforcement 29 | . . . 1 . 3 . . . . . 6 . . . . . . 3 . 2 . . . 2 . 3 . . 2 2 3 2 Assault 7 | . . . . . . . . . . . . . . . . . . . . . . 2 . 2 . . . . . . 3 . Garrison 4 | . . . 1 . 1 . 1 . . . . . . . . 1 . . . . . . . . . . . . . . . . Intercept . | . . . . . . . . . . . . . . . . . . . . . . . . . . . . . . . . . Searches Triggered . | . . . . . . . . . . . . . . . . . . . . . . . . . . . . . . . . . Construction Impeded 2 | . . . . . . . . . . . 1 . . . . . . . . . . . . 1 . . . . . . . . Haulers Reinforced 5 | . . . . . . . . . . . 2 . . . . . . . . . . . . 1 . 2 . . . . . . Active Scanning Responses . | . . . . . . . . . . . . . . . . . . . . . . . . . . . . . . . . . Cargo Convoy Interrupts . | . . . . . . . . . . . . . . . . . . . . . . . . . . . . . . . . . Alert ID Control Effect 50 | . . . . . . . . 4 . . 3 . 2 . . 5 2 . . 8 . . 3 3 . . . 7 7 . 6 . Stealth | -11 -10 -10 -8 -8 -8 -8 -7 -7 -7 -7 -6 -6 -6 -6 -6 -6 -6 -5 -5 -4 -4 -4 -4 -4 -4 -3 -3 -3 -2 -2 -2 -1 --------- Run | Yrd Mat Sub Mat Gar Mat Gar Fac Gar Fac Gar Fac Gar Ext Cet Arc Hub Gar Fac Gar Fac Was Fac Gar Fac Gar Res Tes Gar Res Qua Frg Acc Distress Signals 42 | . 2 . 2 4 6 1 . . . . 5 . 2 2 . . 1 6 . . . . . 3 . 4 1 . 1 . 2 . Communications Jammed 217 | . . . . . . . . . . . 85 . . . . . . . . 42 . . . . . . . . 21 14 46 9 Distress Signals 217 | . . . . . . . . . . . 85 . . . . . . . . 42 . . . . . . . . 21 14 46 9 Times Spotted 898 | . 23 27 23 37 45 26 3 33 . 4 68 25 22 10 . 10 34 49 35 21 6 16 38 17 47 16 27 37 44 41 78 36 Peak Tracking Total 12 | . 4 7 6 7 9 8 1 6 . 2 6 5 4 5 . 3 4 4 12 3 4 6 6 5 6 5 4 6 6 6 6 5 Tactical Retreats 35 | . 1 . 1 2 5 3 . 2 . . 1 5 1 . . 1 1 2 3 . . . . . . . . 2 . 2 3 . Traps | -11 -10 -10 -8 -8 -8 -8 -7 -7 -7 -7 -6 -6 -6 -6 -6 -6 -6 -5 -5 -4 -4 -4 -4 -4 -4 -3 -3 -3 -2 -2 -2 -1 ------- Run | Yrd Mat Sub Mat Gar Mat Gar Fac Gar Fac Gar Fac Gar Ext Cet Arc Hub Gar Fac Gar Fac Was Fac Gar Fac Gar Res Tes Gar Res Qua Frg Acc Traps Triggered 56 | . 3 . . 9 . . 1 2 . 2 1 4 . . . . 2 . . 2 . . 4 . 5 . 2 5 1 4 9 . Indirectly . | . . . . . . . . . . . . . . . . . . . . . . . . . . . . . . . . . Trap Hack Attempts 183 | . 20 . 49 . . 20 . . . . 27 . . . . . . . . . . . . . . . 36 . . 31 . . Triggered . | . . . . . . . . . . . . . . . . . . . . . . . . . . . . . . . . . Disarmed 2 | . 1 . . . . 1 . . . . . . . . . . . . . . . . . . . . . . . . . . Reprogrammed 16 | . 4 . 6 . . . . . . . 3 . . . . . . . . . . . . . . . 2 . . 1 . . Reused 10 | . 1 3 . . . . . . . . 1 3 . . . . . . . . . . . . . . 2 . . . . . Traps Extracted . | . . . . . . . . . . . . . . . . . . . . . . . . . . . . . . . . . Installed 8 | . . 5 . . . . . . . . . 3 . . . . . . . . . . . . . . . . . . . . Triggered 7 | . 1 . . . . . . . . . 1 3 . . . . . . . . . . . . . . 2 . . . . . Most Traps Carried 6 | . . 1 . . . . . . . . . 6 . . . . . . . . . . . . . . . . . . . . Machines | -11 -10 -10 -8 -8 -8 -8 -7 -7 -7 -7 -6 -6 -6 -6 -6 -6 -6 -5 -5 -4 -4 -4 -4 -4 -4 -3 -3 -3 -2 -2 -2 -1 ---------- Run | Yrd Mat Sub Mat Gar Mat Gar Fac Gar Fac Gar Fac Gar Ext Cet Arc Hub Gar Fac Gar Fac Was Fac Gar Fac Gar Res Tes Gar Res Qua Frg Acc Machines Disabled 130 | . . 1 1 3 . 3 . 3 1 4 4 5 6 . 2 3 5 5 6 3 . 4 4 6 7 . 9 3 1 11 26 4 Max in Single Turn 3 | . . 1 1 1 . 1 . 1 1 1 2 1 1 . 1 1 1 1 1 1 . 2 1 3 1 . 1 1 1 1 2 1 Garrison Access 6 | . . . . . . . . . . . . . . . . . . . . . . 1 . . . . . . 2 1 1 1 Garrison Relay 23 | . . . . 2 . 1 . 2 . 2 . 2 . . . . 2 . 3 . . . 2 . 4 . . 3 . . . . Phase Generator 2 | . . . . 1 . 1 . . . . . . . . . . . . . . . . . . . . . . . . . . Network Hub 1 | . . . . . . . . . . . . . . . . 1 . . . . . . . . . . . . . . . . Machines Repaired . | . . . . . . . . . . . . . . . . . . . . . . . . . . . . . . . . . Machines Dismantled 8 | . . . . 1 . 1 . . . 1 . . 3 . . 1 . . . . . . . . 1 . . . . . . . Machines Sabotaged . | . . . . . . . . . . . . . . . . . . . . . . . . . . . . . . . . . Overloaded Fab Kills . | . . . . . . . . . . . . . . . . . . . . . . . . . . . . . . . . . Hacking | -11 -10 -10 -8 -8 -8 -8 -7 -7 -7 -7 -6 -6 -6 -6 -6 -6 -6 -5 -5 -4 -4 -4 -4 -4 -4 -3 -3 -3 -2 -2 -2 -1 --------- Run | Yrd Mat Sub Mat Gar Mat Gar Fac Gar Fac Gar Fac Gar Ext Cet Arc Hub Gar Fac Gar Fac Was Fac Gar Fac Gar Res Tes Gar Res Qua Frg Acc Machines Accessed 134 | . 6 1 7 2 11 1 3 1 2 3 13 2 11 1 . 2 3 9 2 4 . 8 2 5 1 3 6 1 7 6 6 5 Terminals 81 | . 5 . 3 2 7 1 2 1 . 3 7 2 10 1 . 1 3 4 2 1 . 2 2 1 1 3 2 1 4 2 5 3 Fabricators 11 | . . . . . . . . . 1 . 2 . . . . . . 2 . 2 . 2 . 2 . . . . . . . . Repair Stations 13 | . . . 1 . 2 . . . . . 2 . . . . . . 1 . . . 2 . 1 . . 2 . . 2 . . Recycling Units 3 | . 1 . 1 . . . . . . . . . 1 . . . . . . . . . . . . . . . . . . . Scanalyzers 9 | . . . 1 . 1 . . . . . 1 . . . . . . 1 . 1 . . . . . . 1 . 1 1 . 1 Garrison Access 16 | . . . 1 . 1 . 1 . 1 . 1 . . . . 1 . 1 . . . 2 . 1 . . 1 . 2 1 1 1 Total Hacks 354 | . 19 1 29 3 36 1 8 2 3 4 28 3 18 2 . 4 7 37 4 14 . 21 5 21 2 5 25 2 11 14 13 12 Successful 166 | . 10 1 18 1 18 1 4 . 1 1 15 1 8 1 . 1 3 16 2 5 . 8 2 7 1 2 16 . 3 8 7 5 Failed 185 | . 9 . 10 2 17 . 4 2 2 3 13 2 10 1 . 3 4 21 2 9 . 13 3 14 1 3 8 2 8 6 6 7 Catastrophic 48 | . . . 1 . 3 . . 1 1 . 4 1 5 . . 1 1 6 2 1 . 1 2 5 . 1 1 . 4 3 2 2 Database Lockouts 3 | . . . 1 . 1 . . . . . . . . . . . . . . . . . . . . . 1 . . . . . Manual 117 | . 11 . 10 2 9 . 4 2 2 2 3 1 11 1 . 3 2 15 . 3 . 6 2 5 2 4 4 2 6 2 3 . Terminals 191 | . 18 . 13 3 23 1 5 2 . 4 11 3 17 2 . 2 7 14 4 4 . 4 5 4 2 5 9 2 6 3 11 7 Fabricators 32 | . . . . . . . . . 1 . 2 . . . . . . 8 . 8 . 7 . 6 . . . . . . . . Repair Stations 57 | . . . 7 . 5 . . . . . 11 . . . . . . 5 . . . 6 . 9 . . 9 . . 5 . . Recycling Units 4 | . 1 . 2 . . . . . . . . . 1 . . . . . . . . . . . . . . . . . . . Scanalyzers 34 | . . . 5 . 3 . . . . . 2 . . . . . . 8 . 2 . . . . . . 5 . 2 4 . 3 Garrison Access 35 | . . . 2 . 5 . 3 . 2 . 2 . . . . 2 . 2 . . . 4 . 2 . . 2 . 3 2 2 2 Terminal Hacks 64 | . 9 1 5 1 8 1 1 . . 1 3 1 7 1 . . 3 2 2 . . 2 2 1 1 1 3 . . 1 4 3 Part Schematic 1 | . . . . . . . . . . . . . 1 . . . . . . . . . . . . . . . . . . . Robot Analysis 7 | . 3 . 1 . 2 . 1 . . . . . . . . . . . . . . . . . . . . . . . . . Prototype ID Bank 6 | . 4 . 1 . . . . . . . . . 1 . . . . . . . . . . . . . . . . . . . Open Door 9 | . . . . 1 . . . . . . . . 3 1 . . 1 . 1 . . . 1 . . . . . . . . 1 Branch Access Points 2 | . . . 1 . . . . . . . . . . . . . . . . . . . . . . 1 . . . . . . Unreport Threat 15 | . . . . . 3 . . . . . 2 . 2 . . . 1 1 . . . 1 . . . . 1 . . 1 1 2 Locate Traps 10 | . 2 . 2 . 2 . . . . . . . . . . . . 1 . . . . . . . . 1 . . . 2 . Recall Extermination 1 | . . . . . . . . . . . . . . . . . . . . . . . . 1 . . . . . . . . Registered Components 1 | . . . . . 1 . . . . . . . . . . . . . . . . . . . . . . . . . . . Zone Layout 2 | . . . . . . . . . . . 1 . . . . . . . . . . 1 . . . . . . . . . . Garrison Registry 7 | . . . . . . 1 . . . 1 . 1 . . . . 1 . 1 . . . 1 . 1 . . . . . . . Proto ID Catalog 2 | . . 1 . . . . . . . . . . . . . . . . . . . . . . . . . . . . 1 . Protovariant Controls 1 | . . . . . . . . . . . . . . . . . . . . . . . . . . . 1 . . . . . Fabricator Hacks 7 | . . . . . . . . . . . . . . . . . . 3 . 1 . 2 . 1 . . . . . . . . Network Status 4 | . . . . . . . . . . . . . . . . . . 1 . 1 . 1 . 1 . . . . . . . . Load Schematic 1 | . . . . . . . . . . . . . . . . . . 1 . . . . . . . . . . . . . . Build 2 | . . . . . . . . . . . . . . . . . . 1 . . . 1 . . . . . . . . . . Repair Station Hacks 33 | . . . 5 . 4 . . . . . 10 . . . . . . 2 . . . . . 2 . . 7 . . 3 . . Scan Component 19 | . . . 3 . 2 . . . . . 5 . . . . . . 1 . . . . . 2 . . 4 . . 2 . . Repair 14 | . . . 2 . 2 . . . . . 5 . . . . . . 1 . . . . . . . . 3 . . 1 . . Recycling Unit Hacks 1 | . 1 . . . . . . . . . . . . . . . . . . . . . . . . . . . . . . . Retrieve Components 1 | . 1 . . . . . . . . . . . . . . . . . . . . . . . . . . . . . . . Scanalyzer 19 | . . . 4 . 1 . . . . . 1 . . . . . . 5 . 2 . . . . . . 4 . . 2 . . Insert Component 5 | . . . 1 . . . . . . . . . . . . . . 2 . . . . . . . . 2 . . . . . Analyze 4 | . . . 1 . . . . . . . . . . . . . . 3 . . . . . . . . . . . . . . Retrieve Study 10 | . . . 2 . 1 . . . . . 1 . . . . . . . . 2 . . . . . . 2 . . 2 . . Garrison Access Hacks 20 | . . . 1 . 1 . 1 . 1 . 1 . . . . 1 . 1 . . . 2 . 1 . . 1 . 3 2 2 2 Unlock Access 11 | . . . 1 . 1 . 1 . 1 . 1 . . . . 1 . 1 . . . 2 . 1 . . 1 . . . . . Seal Access 5 | . . . . . . . . . . . . . . . . . . . . . . . . . . . . . 2 1 1 1 Coupler Status 4 | . . . . . . . . . . . . . . . . . . . . . . . . . . . . . 1 1 1 1 Unauthorized Hacks 22 | . . . 3 . 4 . 2 . . . . . 1 . . . . 3 . 2 . 2 . 2 . 1 1 . . . 1 . Terminals 9 | . . . 2 . 1 . 1 . . . . . . . . . . 1 . . . 1 . . . 1 1 . . . 1 . Track 1 | . . . . . . . . . . . . . . . . . . . . . . . . . . . . . . . 1 . Assimilate 1 | . . . . . . . . . . . . . . . . . . 1 . . . . . . . . . . . . . . Botnet 7 | . . . 2 . 1 . 1 . . . . . . . . . . . . . . 1 . . . 1 1 . . . . . Fabricators 7 | . . . . . . . . . . . . . . . . . . 2 . 2 . 1 . 2 . . . . . . . . Liberate 4 | . . . . . . . . . . . . . . . . . . 1 . 1 . 1 . 1 . . . . . . . . Haulers 3 | . . . . . . . . . . . . . . . . . . 1 . 1 . . . 1 . . . . . . . . Repair Stations 1 | . . . . . 1 . . . . . . . . . . . . . . . . . . . . . . . . . . . Mechanics 1 | . . . . . 1 . . . . . . . . . . . . . . . . . . . . . . . . . . . Recycling Units 1 | . . . . . . . . . . . . . 1 . . . . . . . . . . . . . . . . . . . Reject 1 | . . . . . . . . . . . . . 1 . . . . . . . . . . . . . . . . . . . Scanalyzers . | . . . . . . . . . . . . . . . . . . . . . . . . . . . . . . . . . Garrison Access 4 | . . . 1 . 2 . 1 . . . . . . . . . . . . . . . . . . . . . . . . . Reprogram 3 | . . . 1 . 1 . 1 . . . . . . . . . . . . . . . . . . . . . . . . . Eject 1 | . . . . . 1 . . . . . . . . . . . . . . . . . . . . . . . . . . . Data Cores Recovered 7 | . . . . . . . . . . . . . 1 . . 1 . . . 1 . . . . . 1 . . . 1 1 1 Used 4 | . . . . . . . . . . . . . 1 . . . . . . 1 . . . . . . . . . . 1 1 Hacking Detections 89 | . 3 . 6 1 10 1 3 . 2 1 13 1 6 . . 2 . 6 1 2 . 5 . 5 . 1 4 . 2 4 5 5 Full Trace Events 9 | . . . 1 1 1 . 1 1 . . . 1 . . . . . 1 . . . . . 1 . . . . 1 . . . Feedback Events 1 | . . . . . 1 . . . . . . . . . . . . . . . . . . . . . . . . . . . Corruption 1 | . . . . . 1 . . . . . . . . . . . . . . . . . . . . . . . . . . . Feedback Blocked . | . . . . . . . . . . . . . . . . . . . . . . . . . . . . . . . . . Robot Schematics Acquired . | . . . . . . . . . . . . . . . . . . . . . . . . . . . . . . . . . Robots Built 1 | . . . . . . . . . . . . . . . . . . . . . . 1 . . . . . . . . . . Authchips . | . . . . . . . . . . . . . . . . . . . . . . . . . . . . . . . . . Time 187 | . . . . . . . . . . . . . . . . . . . . . . 187 . . . . . . . . . . Total Robot Build Rating 7 | . . . . . . . . . . . . . . . . . . . . . . 7 . . . . . . . . . . Part Schematics Acquired 10 | . . . 1 . . . . . . . . . 1 . . . . 1 . . . . . . . . 5 . . 2 . . Parts Built 1 | . . . . . . . . . . . . . . . . . . 1 . . . . . . . . . . . . . . Authchips . | . . . . . . . . . . . . . . . . . . . . . . . . . . . . . . . . . Time 102 | . . . . . . . . . . . . . . . . . . 102 . . . . . . . . . . . . . . Total Part Build Rating 8 | . . . . . . . . . . . . . . . . . . 8 . . . . . . . . . . . . . . Part Studies Acquired 10 | . . . 2 . 1 . . . . . 1 . . . . . . . . 2 . . . . . . 2 . . 2 . . Parts Repaired 14 | . . . 2 . 2 . . . . . 5 . . . . . . 1 . . . . . . . . 3 . . 1 . . Time 767 | . . . 118 . 92 . . . . . 274 . . . . . . 54 . . . . . . . . 209 . . 20 . . Parts Recycled . | . . . . . . . . . . . . . . . . . . . . . . . . . . . . . . . . . Recycled Matter . | . . . . . . . . . . . . . . . . . . . . . . . . . . . . . . . . . Retrieved Matter . | . . . . . . . . . . . . . . . . . . . . . . . . . . . . . . . . . Retrieved Components 6 | . 6 . . . . . . . . . . . . . . . . . . . . . . . . . . . . . . . Parts Scanalyzed 2 | . . . 1 . . . . . . . . . . . . . . 1 . . . . . . . . . . . . . . Part Schematics Acquired 2 | . . . 1 . . . . . . . . . . . . . . 1 . . . . . . . . . . . . . . Parts Damaged 2 | . . . 1 . . . . . . . . . . . . . . 1 . . . . . . . . . . . . . . Bothacking | -11 -10 -10 -8 -8 -8 -8 -7 -7 -7 -7 -6 -6 -6 -6 -6 -6 -6 -5 -5 -4 -4 -4 -4 -4 -4 -3 -3 -3 -2 -2 -2 -1 ------------ Run | Yrd Mat Sub Mat Gar Mat Gar Fac Gar Fac Gar Fac Gar Ext Cet Arc Hub Gar Fac Gar Fac Was Fac Gar Fac Gar Res Tes Gar Res Qua Frg Acc Used RIF Installer 14 | . . . . 2 . 2 . 2 . 1 . 1 . . . . 1 . 1 . . . 1 . 2 . . 1 . . . . Coupler Efficiency 2 | . . . . . . . . . . . . . . . . . . . 1 . . . . . . . . 1 . . . . Threat Obfuscator 1 | . . . . . . . . . . . . . . . . . . . . . . . 1 . . . . . . . . . Signal Jammer 1 | . . . . . . 1 . . . . . . . . . . . . . . . . . . . . . . . . . . Robot Detection 1 | . . . . . . . . 1 . . . . . . . . . . . . . . . . . . . . . . . . Watcher Feeds 1 | . . . . . . . . . . . . . . . . . 1 . . . . . . . . . . . . . . . Patrol Navigation 1 | . . . . . . . . 1 . . . . . . . . . . . . . . . . . . . . . . . . Alert ID Control 1 | . . . . . . 1 . . . . . . . . . . . . . . . . . . . . . . . . . . Structural Interface 1 | . . . . . . . . . . . . 1 . . . . . . . . . . . . . . . . . . . . Program Shield 1 | . . . . 1 . . . . . . . . . . . . . . . . . . . . . . . . . . . . Autooverride 1 | . . . . . . . . . . . . . . . . . . . . . . . . . 1 . . . . . . . Autoassimilate 2 | . . . . . . . . . . 1 . . . . . . . . . . . . . . 1 . . . . . . . Robots Hacked 104 | . . . . . 2 . 1 3 . . 16 . 7 1 . 3 . 8 1 1 5 2 10 6 10 . 2 3 6 2 13 2 Non-combat 20 | . . . . . 2 . . . . . 5 . 3 . . . . 3 . . . . . 1 . . 1 . 2 . 1 2 Combat 84 | . . . . . . . 1 3 . . 11 . 4 1 . 3 . 5 1 1 5 2 10 5 10 . 1 3 4 2 12 . Autooverrided 5 | . . . . . . . . . . . . . . . . . . . . . . . . . 3 . . . . . 2 . Autoassimilated 13 | . . . . . . . . . . . 3 . 1 . . . . 1 1 . . . 1 . 2 . . . 1 . 3 . Robot Hacks Applied 111 | . . . . . 6 . 2 3 . . 15 . 7 1 . 4 . 9 . 1 6 3 11 6 5 . 2 3 8 2 10 7 parse_system 4 | . . . . . . . . . . . . . 1 1 . . . . . . 1 . . . . . 1 . . . . . no_distress 1 | . . . . . . . . . . . 1 . . . . . . . . . . . . . . . . . . . . . find_chute 1 | . . . . . . . . . . . . . . . . . . 1 . . . . . . . . . . . . . . map_walls 1 | . . . . . . . . . . . . . 1 . . . . . . . . . . . . . . . . . . . drop_inventory 2 | . . . . . . . . . . . . . . . . . . . . . . . . 1 . . . . 1 . . . ignore_parts 2 | . . . . . . . . . . . . . 1 . . . . . . . . . . . . . 1 . . . . . deconstruct_bot 1 | . . . . . . . . . . . . . . . . . . . . . . . . . . . . . . . . 1 purge_threat 13 | . . . . . 3 . . . . . . . 1 . . . . 2 . . . . . . . . . . 4 . . 3 disarm_traps 3 | . . . . . 3 . . . . . . . . . . . . . . . . . . . . . . . . . . . block_reporting 2 | . . . . . . . . . . . 1 . . . . . . . . . . . . . . . . . . . . 1 disable_scanner 3 | . . . . . . . . . . . . . . . . . . . . . . . . . . . . . . . 3 . ignore_targets 5 | . . . . . . . . . . . . . . . . . . . . . 5 . . . . . . . . . . . find_garrison 4 | . . . . . . . 1 . . . 1 . . . . . . 1 . . . 1 . . . . . . . . . . link_fov 2 | . . . . . . . . . . . . . . . . . . . . . . . . . . . . . . . 2 . overload_power 2 | . . . . . . . . . . . . . . . . 1 . . . . . . . 1 . . . . . . . . amplify_resonance 4 | . . . . . . . . . . . 3 . . . . . . . . . . . . 1 . . . . . . . . wipe_record 3 | . . . . . . . . . . . . . . . . . . . . . . . 3 . . . . . . . . . reboot_system 7 | . . . . . . . . 2 . . . . . . . 1 . 1 . . . 1 1 . 1 . . . . . . . overwrite_iff 22 | . . . . . . . . 1 . . 6 . . . . . . 3 . 1 . . 4 1 4 . . . . 2 . . streamctrl_low 1 | . . . . . . . . . . . 1 . . . . . . . . . . . . . . . . . . . . . formatsys_low 6 | . . . . . . . . . . . 1 . . . . . . 1 . . . . . . . . . . . . 2 2 formatsys_high 22 | . . . . . . . 1 . . . 1 . 3 . . 2 . . . . . 1 3 2 . . . 3 3 . 3 . Relay Couplers Released 101 | . . . . 10 3 4 . 7 . 6 . 8 . . . . 9 . 11 . . 1 9 . 14 . . 17 1 . . 1 Ejected 3 | . . . . . 3 . . . . . . . . . . . . . . . . . . . . . . . . . . . Machine Destruction 91 | . . . . 10 . 4 . 7 . 6 . 8 . . . . 6 . 11 . . 1 9 . 14 . . 13 1 . . 1 Programmers 7 | . . . . . . . . . . . . . . . . . 3 . . . . . . . . . . 4 . . . . Attached 34 | . . . . . 1 . 1 1 . . 3 . 2 . . 4 . 2 . 2 . 1 4 1 4 . . 2 2 . 3 1 Fabnet Peak Effective % . | . . . . . . . . . . . . . . . . . . . . . . . . . . . . . . . . . Robots Rewired 36 | . . . . . . . . . . . . 3 11 . . . 2 . 4 3 . . . . 6 . 1 6 . . . . Allies Hacked 3 | . . . . . . . . . . . . . . . . . . 2 . . . . . . 1 . . . . . . . Hacks Repelled . | . . . . . . . . . . . . . . . . . . . . . . . . . . . . . . . . . Allies | -11 -10 -10 -8 -8 -8 -8 -7 -7 -7 -7 -6 -6 -6 -6 -6 -6 -6 -5 -5 -4 -4 -4 -4 -4 -4 -3 -3 -3 -2 -2 -2 -1 -------- Run | Yrd Mat Sub Mat Gar Mat Gar Fac Gar Fac Gar Fac Gar Ext Cet Arc Hub Gar Fac Gar Fac Was Fac Gar Fac Gar Res Tes Gar Res Qua Frg Acc Total Allies 132 | . . . 1 1 1 . 2 1 . 2 12 3 22 5 . 2 4 6 6 4 . 2 10 3 15 . 1 11 4 2 10 2 Largest Group 22 | . . . . 1 . 1 2 2 . 2 2 3 22 22 18 13 10 4 4 5 . 2 3 2 3 . 1 6 1 1 3 1 Highest-Rated Group 981 | . . . . 20 . 15 64 64 . 62 62 90 771 981 981 731 537 178 184 231 . 142 124 112 196 . 158 438 183 64 276 45 Highest-Rated Ally 183 | . . . . 20 . 15 32 32 . 31 32 30 159 159 159 110 110 110 46 56 . 93 116 56 99 . 158 119 183 64 148 45 Total Orders 66 | . . . . . . . . . . . 9 . 8 4 . 5 5 . 1 . . . 2 . 3 . 1 9 7 . 12 . STAY 31 | . . . . . . . . . . . 5 . 4 2 . 3 3 . . . . . 1 . 2 . 1 . 3 . 7 . ROAM 5 | . . . . . . . . . . . . . . . . . . . 1 . . . . . . . . 4 . . . . FOLLOW 23 | . . . . . . . . . . . 2 . 4 2 . 2 2 . . . . . 1 . 1 . . 1 4 . 4 . GUARD 4 | . . . . . . . . . . . . . . . . . . . . . . . . . . . . 4 . . . . AID 3 | . . . . . . . . . . . 2 . . . . . . . . . . . . . . . . . . . 1 . Ally Attacks 840 | . . . . 4 . 1 1 17 . 16 40 12 70 77 1 66 122 55 2 41 . 2 25 26 51 . 4 117 32 6 52 . Total Damage 25307 | . . . . 66 . 26 23 489 . 235 733 341 1560 1787 24 1261 3035 1736 40 1159 . 202 873 806 1598 . 420 4978 1816 304 1795 . Kills 139 | . . . . . . . . 4 . 2 3 2 10 9 1 8 21 15 . 12 . 1 3 5 4 . 1 24 7 1 6 . Allies Corrupted 4 | . . . . . . . . . . . . . . . . . . . . . . 1 . . 1 . 1 . . . 1 . Allies Melted 3 | . . . . . . . . . . . . . . . . . . . . . . . . . 1 . . 2 . . . . Intel | -11 -10 -10 -8 -8 -8 -8 -7 -7 -7 -7 -6 -6 -6 -6 -6 -6 -6 -5 -5 -4 -4 -4 -4 -4 -4 -3 -3 -3 -2 -2 -2 -1 ------- Run | Yrd Mat Sub Mat Gar Mat Gar Fac Gar Fac Gar Fac Gar Ext Cet Arc Hub Gar Fac Gar Fac Was Fac Gar Fac Gar Res Tes Gar Res Qua Frg Acc Active Infowar (turns) 17683 | . . 5352 490 . 238 35 196 . . . 73 . . . . . . . . 1 . . 1 . 540 808 2085 1326 1557 2008 2122 851 Optics 8187 | . . . . . . . . . . . . . . . . . . . . . . . . . 540 808 2085 1326 1557 1871 . . Sensors 4464 | . . 1829 . . . . . . . . . . . . . . . . . . . . . . . . 962 . 547 828 298 . Seismic 4482 | . . 3523 490 . 238 35 196 . . . . . . . . . . . . . . . . . . . . . . . . . Triangulation 2 | . . . . . . . . . . . . . . . . . . . . . . . . . . 2 . . . . . . Cloaking 2677 | . . . . . . . . . . . . . . . . . . . . 1 . . 1 . . . . . . . 1824 851 Jamming 73 | . . . . . . . . . . . 73 . . . . . . . . . . . . . . . . . . . . . Robot Analysis Total 7 | . 3 . 1 . 2 . 1 . . . . . . . . . . . . . . . . . . . . . . . . . Derelict Logs Recovered 2 | . . 2 . . . . . . . . . . . . . . . . . . . . . . . . . . . . . . Drone Launches . | . . . . . . . . . . . . . . . . . . . . . . . . . . . . . . . . . Drone Recoveries . | . . . . . . . . . . . . . . . . . . . . . . . . . . . . . . . . . Exploration | -11 -10 -10 -8 -8 -8 -8 -7 -7 -7 -7 -6 -6 -6 -6 -6 -6 -6 -5 -5 -4 -4 -4 -4 -4 -4 -3 -3 -3 -2 -2 -2 -1 ------------- Run | Yrd Mat Sub Mat Gar Mat Gar Fac Gar Fac Gar Fac Gar Ext Cet Arc Hub Gar Fac Gar Fac Was Fac Gar Fac Gar Res Tes Gar Res Qua Frg Acc Turns Passed 46519 | 123 1976 6457 1322 1971 2169 928 403 1066 646 599 2005 1716 1573 367 115 521 1360 1923 1191 989 107 852 1151 781 1812 808 2085 1326 1573 2069 3684 851 Spaces Moved 19649 | 54 859 2428 532 634 815 413 240 445 127 302 802 801 758 166 40 235 514 875 573 494 59 411 486 401 772 348 798 665 707 875 1545 475 Core 2 | 2 . . . . . . . . . . . . . . . . . . . . . . . . . . . . . . . . Treads 17512 | 52 859 1524 39 634 815 413 240 445 127 302 802 801 758 166 40 235 514 875 573 494 59 411 486 401 772 348 798 665 707 875 1282 . Legs 738 | . . . . . . . . . . . . . . . . . . . . . . . . . . . . . . . 263 475 Wheels 1397 | . . 904 493 . . . . . . . . . . . . . . . . . . . . . . . . . . . . . Hover . | . . . . . . . . . . . . . . . . . . . . . . . . . . . . . . . . . Flight . | . . . . . . . . . . . . . . . . . . . . . . . . . . . . . . . . . Fastest Speed 50 | 50 160 130 130 233 150 150 152 152 160 160 160 160 160 160 160 160 160 160 160 160 165 165 160 160 160 160 158 158 155 153 110 110 Average Speed 169 | 155 165 205 161 233 193 153 152 157 160 160 160 160 160 160 160 160 211 163 160 161 165 165 161 160 160 160 163 158 156 159 158 110 Slowest Speed 320 | 160 240 320 246 233 240 208 152 160 160 160 160 240 160 160 160 160 320 240 160 165 165 165 165 160 160 160 255 158 158 161 241 110 Overloaded Moves . | . . . . . . . . . . . . . . . . . . . . . . . . . . . . . . . . . Propulsion Burnouts . | . . . . . . . . . . . . . . . . . . . . . . . . . . . . . . . . . Robots Hopped . | . . . . . . . . . . . . . . . . . . . . . . . . . . . . . . . . . Potential Cave-ins 31 | . . . . . . . . . . . . . . . . . . . . . . . . 2 . . . . . . 29 . Cave-ins Triggered 4 | . . . . . . . . . . . . . . . . . . . . . . . . . . . . . . . 4 . Teleports 1 | . . . . . . . . . . . . . . . . . . . . . . . . . . . . . . . 1 . Exploration Rate (%) 52 | 4 97 94 35 84 82 59 7 45 4 53 25 68 86 73 52 19 80 29 69 23 62 18 71 14 89 12 93 93 32 95 41 21 Regions Visited 32 Branch Regions 8 Pre-discovered Areas . | . . . . . . . . . . . . . . . . . . . . . . . . . . . . . . . . . Known Exits Taken 14 | . . . 1 . 1 . 1 . 1 . 1 . . . . 1 . 1 . . . 1 . 1 . 1 1 . 1 1 1 . Unknown Exits Taken 6 | 1 1 1 . . . . . . . . . . 1 1 1 . . . . . . . . . . . . . . . . . Scrap Searched 17 | . . 17 . . . . . . . . . . . . . . . . . . . . . . . . . . . . . . Spaces Dug 108 | . . 4 7 . 1 2 . 7 . . 1 . . . 1 . . 1 . . . 7 . 3 . 6 5 3 10 14 20 16 Terrain Destroyed 1424 | . . 146 33 1 1 18 . 91 . 2 21 53 4 . 1 . 5 40 27 21 . 85 164 43 40 7 28 45 81 35 190 242 Melee 22 | . . 3 7 . 1 2 . 7 . . 1 . . . . . . 1 . . . . . . . . . . . . . . Projectile 574 | . . 2 2 1 . . . . . . . 1 4 . 1 . 5 39 9 21 . 14 8 12 40 7 27 11 40 35 169 126 AOE 827 | . . 141 24 . . 16 . 84 . 2 20 52 . . . . . . 18 . . 71 156 31 . . . 34 41 . 21 116 Terrain Rammed . | . . . . . . . . . . . . . . . . . . . . . . . . . . . . . . . . . Walls Destroyed . | . . . . . . . . . . . . . . . . . . . . . . . . . . . . . . . . . Machines Disabled . | . . . . . . . . . . . . . . . . . . . . . . . . . . . . . . . . . Actions | -11 -10 -10 -8 -8 -8 -8 -7 -7 -7 -7 -6 -6 -6 -6 -6 -6 -6 -5 -5 -4 -4 -4 -4 -4 -4 -3 -3 -3 -2 -2 -2 -1 --------- Run | Yrd Mat Sub Mat Gar Mat Gar Fac Gar Fac Gar Fac Gar Ext Cet Arc Hub Gar Fac Gar Fac Was Fac Gar Fac Gar Res Tes Gar Res Qua Frg Acc Total 29502 | 76 1328 3722 910 934 1264 616 271 688 569 377 1337 1095 1002 239 69 352 706 1229 748 627 66 563 744 514 1110 579 1464 867 1029 1365 2374 668 Wait 5582 | 3 350 1044 226 123 275 82 13 75 422 29 323 117 56 24 8 83 55 218 55 43 . 97 98 58 105 189 426 100 171 281 358 75 Move 19622 | 53 858 2427 532 633 814 412 240 444 127 301 802 800 757 165 39 234 513 875 572 494 58 411 485 401 771 347 797 664 706 874 1542 474 Hop . | . . . . . . . . . . . . . . . . . . . . . . . . . . . . . . . . . Pick Up 285 | 7 16 40 16 18 10 7 2 6 4 4 12 14 4 4 . 2 6 6 5 5 . 7 8 5 11 5 10 3 3 8 36 1 Fast Attach 301 | 6 10 4 7 3 18 4 1 9 4 . 8 14 7 9 1 . 18 11 9 17 . 4 20 4 15 5 34 1 4 15 35 4 Attach 108 | . . 7 10 7 4 2 2 2 . . 12 . 2 1 . 4 3 3 3 1 . 3 2 3 3 2 2 . 1 4 20 5 Detach 73 | . 1 . 1 2 3 . 1 1 2 . 5 2 . 3 . . 6 3 1 3 . 2 2 1 5 . 9 . 3 2 13 2 Swap 655 | . 11 65 10 15 21 21 3 30 3 12 33 28 20 8 3 7 12 27 6 9 2 11 32 7 31 6 35 22 41 29 75 20 Drop 424 | . 12 35 11 16 26 10 1 21 6 2 5 29 11 12 1 . 17 13 11 18 . 8 22 5 21 8 39 3 4 15 40 2 Fire 1679 | 7 32 74 35 93 81 42 4 45 . 11 91 63 32 13 17 10 53 61 51 34 6 16 57 27 118 13 59 38 80 97 242 77 Melee 225 | . 10 21 13 1 4 6 2 54 1 4 9 24 14 . . 7 . 1 . . . 1 15 . 16 . 6 7 . . 5 4 Ram . | . . . . . . . . . . . . . . . . . . . . . . . . . . . . . . . . . Kick 4 | . . . . . . . . . . . . . . . . . . . . . . . . . . . . . . . 1 3 Crush 78 | . 8 . . . 8 1 1 . . . 9 . 6 . . . 2 9 1 3 . 1 . 1 . 1 6 . 12 8 1 . Escape Stasis 27 | . . . . 12 . . . . . 4 . . . . . . 4 . . . . . . . 1 . . . . . 6 . Rewire 164 | . . . . . . . 1 . . . 1 . 66 . . 2 16 . 34 . . 1 2 2 4 . 5 28 1 . . 1 Trap 191 | . 20 5 49 . . 20 . . . . 27 3 . . . . . . . . . . . . . . 36 . . 31 . . Miscellaneous 84 | . . . . 11 . 9 . 1 . 10 . 1 27 . . 3 1 2 . . . 1 1 . 9 3 . 1 3 1 . . Route ------- -11/Scrapyard -10/Materials (discovered 6 exits: [*Mat x3] / [*Min x2] / *Sub) -10/Subcaves (discovered 2 exits: *Mat x2) -8/Materials (discovered 2 exits: *Fac / Gar) -8/Garrison (discovered 3 exits: *Mat x3) -8/Materials (discovered 3 exits: *Fac x2 / Gar) -8/Garrison (discovered 3 exits: *Fac x3) -7/Factory -7/Garrison (discovered 2 exits: *Fac / *Fac) -7/Factory -7/Garrison (discovered 3 exits: *Fac x3) -6/Factory -6/Garrison (discovered 3 exits: *Ext x3) -6/Extension (discovered 2 exits: *Fac / *Cet) -6/Cetus (discovered 2 exits: *Fac / [*Arc]) -6/Archives -6/Hub_04(d) (discovered 2 exits: *Fac / Gar) -6/Garrison (discovered 3 exits: *Fac x3) -5/Factory (discovered 3 exits: *Fac / [*Upp] / Gar) -5/Garrison (discovered 3 exits: *Fac x3) -4/Factory (discovered 2 exits: *Res / [*Upp]) -4/Waste -4/Factory -4/Garrison (discovered 3 exits: *Fac x3) -4/Factory (discovered 3 exits: *Res / [*Upp] / Gar) -4/Garrison (discovered 3 exits: *Res x3) -3/Research (discovered 4 exits: *Res / Arm / *Tes x2) -3/Testing (discovered 2 exits: *Res / Gar) -3/Garrison (discovered 3 exits: *Res x3) -2/Research -2/Quarantine (discovered 3 exits: *Acc / [*Sec] / *Frg) -2/Protoforge -1/Access To Epsilon Eridani History --------- Turn | Location | Event 23 | -11/Scrapyard | Discovered new exit (range 14) 124 | -11/Scrapyard | Entered Materials 304 | -10/Materials | Build established: Mutant 377 | -10/Materials | Discovered new exit (range 12) 809 | -10/Materials | Discovered new exit (range 8) 824 | -10/Materials | Derelicts attacked the area 1465 | -10/Materials | Discovered new exit (range 8) 1574 | -10/Materials | Discovered new exit (range 16) 1805 | -10/Materials | Discovered new exit (range 14) 1874 | -10/Materials | Discovered new exit (range 6) 2100 | -10/Materials | Entered Subcaves 2106 | -10/Subcaves | Ambushed by Subdwellers from Twisted Machinery 2143 | -10/Subcaves | Learned Materials garrison access intel 2504 | -10/Subcaves | Shifting Twisted Machinery released Mak. Axe 2595 | -10/Subcaves | Ambushed by swarm of Subdwellers 3084 | -10/Subcaves | Shifting Twisted Machinery released Piercing Trap 3499 | -10/Subcaves | Discovered new exit (range 11) 3666 | -10/Subcaves | Build established: Scavenger-Mutant 3960 | -10/Subcaves | Disturbed a concealed Subdweller 4039 | -10/Subcaves | Build established: Mutant 4653 | -10/Subcaves | Core integrity fell below 50% 4940 | -10/Subcaves | A Subdweller sparked back to life 4940 | -10/Subcaves | A Subdweller sparked back to life 4940 | -10/Subcaves | A Subdweller sparked back to life 4991 | -10/Subcaves | Found Prototype Device 5008 | -10/Subcaves | Lost 3 parts (1p1n1w) 5118 | -10/Subcaves | Discovered new exit (range 11) 5214 | -10/Subcaves | Learned location of 1 exit from Materials 5259 | -10/Subcaves | Visited 4L-MR0's lab 5269 | -10/Subcaves | Identified Power Bank 5282 | -10/Subcaves | Found Tower Shield 5545 | -10/Subcaves | Build established: Scavenger-Mutant 6208 | -10/Subcaves | A swath of the cavern ceiling suddenly collapsed 6289 | -10/Subcaves | Core integrity fell below 20% 6472 | -10/Subcaves | Shifting Twisted Machinery released Mak. System Shield 6916 | -10/Subcaves | Disturbed a concealed Subdweller 7057 | -10/Subcaves | Build established: Mutant 7323 | -10/Subcaves | Shifting Twisted Machinery released Battle Rifle 8557 | -10/Subcaves | Entered Materials 8557 | -8/Materials | Evolved 4 slots: Propulsion x1, Utility x2, Weapon x1 8558 | -8/Materials | Identified exit to Factory 8559 | -8/Materials | Loaded intel: 1 garrison access location 8560 | -8/Materials | Attached Tower Shield, gained temporary slots: Power, Propulsion x2, Utility x2, Weapon x2 8562 | -8/Materials | Attached Power Bank, gained temporary slots: Power x3 8618 | -8/Materials | Repaired Spk. Treads 8929 | -8/Materials | Central database locked down 8983 | -8/Materials | Build established: Scavenger-Gunner 9279 | -8/Materials | Repaired Broken Myomer Leg 9396 | -8/Materials | Build established: Scavenger-Tank 9877 | -8/Materials | Identified exit to Garrison 9879 | -8/Materials | Entered Garrison 9879 | -8/Garrison | Accompanied by 1 ally 9955 | -8/Garrison | Phase Generator disabled 10177 | -8/Garrison | Triggered checkpoint 10282 | -8/Garrison | Garrison Relay disabled 10460 | -8/Garrison | Triggered checkpoint 10716 | -8/Garrison | Triggered checkpoint 10787 | -8/Garrison | Installed Relay Interface Framework 10820 | -8/Garrison | Garrison Relay disabled 10873 | -8/Garrison | Discovered new exit (range 11) 11266 | -8/Garrison | Rescued a captive Derelict 11317 | -8/Garrison | Triggered checkpoint 11372 | -8/Garrison | Triggered checkpoint 11387 | -8/Garrison | P-60 Hacker assimilated allied G1-XDU(b) 11485 | -8/Garrison | Discovered new exit (range 15) 11690 | -8/Garrison | Build established: Tank 11761 | -8/Garrison | Discovered new exit (range 10) 11798 | -8/Garrison | Expanded RIF knowledge: Program Shield 11850 | -8/Garrison | Entered Materials 12388 | -8/Materials | Repaired Imp. Treads+ 12593 | -8/Materials | Build established: Scavenger-Tank 13058 | -8/Materials | Destroyed 7 combat bots 13114 | -8/Materials | Discovered exit to Factory (range 15) 13199 | -8/Materials | Build established: Tank 13247 | -8/Materials | Central database locked down 13531 | -8/Materials | Repaired Enh. Autogun 13705 | -8/Materials | Discovered exit to Factory (range 15) 14016 | -8/Materials | Identified exit to Garrison 14019 | -8/Materials | Entered Garrison 14019 | -8/Garrison | Accompanied by 1 ally 14050 | -8/Garrison | Triggered checkpoint 14110 | -8/Garrison | Garrison Relay disabled 14181 | -8/Garrison | Triggered checkpoint 14211 | -8/Garrison | Triggered checkpoint 14305 | -8/Garrison | Destroyed 7 combat bots 14339 | -8/Garrison | Core integrity fell below 50% 14388 | -8/Garrison | Destroyed 8 combat bots 14389 | -8/Garrison | Discovered exit to Factory (range 12) 14405 | -8/Garrison | Triggered checkpoint 14497 | -8/Garrison | Discovered exit to Factory (range 65) 14497 | -8/Garrison | Discovered exit to Factory (range 12) 14497 | -8/Garrison | Discovered exit to Factory (range 43) 14610 | -8/Garrison | Expanded RIF knowledge: Signal Jamming 14720 | -8/Garrison | Phase Generator disabled 14788 | -8/Garrison | Expanded RIF knowledge: Alert ID Control 14947 | -8/Garrison | Entered Factory 14947 | -7/Factory | Evolved 2 slots: Propulsion x1, Utility x1 15281 | -7/Factory | Build established: Gunner 15346 | -7/Factory | Identified exit to Garrison 15350 | -7/Factory | Entered Garrison 15350 | -7/Garrison | Accompanied by 2 allies 15368 | -7/Garrison | Triggered checkpoint 15422 | -7/Garrison | Garrison Relay disabled 15544 | -7/Garrison | Expanded RIF knowledge: Patrol Navigation 15897 | -7/Garrison | Triggered checkpoint 15899 | -7/Garrison | Triggered checkpoint 15937 | -7/Garrison | Destroyed 7 combat bots 16162 | -7/Garrison | Expanded RIF knowledge: Robot Detection 16205 | -7/Garrison | Triggered checkpoint 16227 | -7/Garrison | Discovered new exit (range 10) 16280 | -7/Garrison | Garrison Relay disabled 16378 | -7/Garrison | Triggered checkpoint 16403 | -7/Garrison | Discovered new exit (range 6) 16416 | -7/Garrison | Entered Factory 16557 | -7/Factory | Build established: Tank 16640 | -7/Factory | Identified exit to Garrison 17062 | -7/Factory | Entered Garrison 17108 | -7/Garrison | Rescued a captive Derelict 17114 | -7/Garrison | Rescued a captive Derelict 17161 | -7/Garrison | Discovered new exit (range 66) 17161 | -7/Garrison | Discovered new exit (range 85) 17161 | -7/Garrison | Discovered new exit (range 63) 17169 | -7/Garrison | Triggered checkpoint 17202 | -7/Garrison | Garrison Relay disabled 17336 | -7/Garrison | Triggered checkpoint 17342 | -7/Garrison | Triggered checkpoint 17351 | -7/Garrison | Triggered checkpoint 17364 | -7/Garrison | Triggered checkpoint 17375 | -7/Garrison | Destroyed 8 combat bots 17409 | -7/Garrison | Expanded RIF knowledge: Autoassimilate 17442 | -7/Garrison | Triggered checkpoint 17495 | -7/Garrison | Garrison Relay disabled 17513 | -7/Garrison | Build established: Bothacker-Tank 17661 | -7/Garrison | Entered Factory 17661 | -6/Factory | Accompanied by 2 allies 17661 | -6/Factory | Evolved 2 slots: Power x1, Utility x1 17749 | -6/Factory | Lost 4 allies 17774 | -6/Factory | Destroyed 7 combat bots 17868 | -6/Factory | Repaired Lyr. Medium Armor Plating 17919 | -6/Factory | Repaired Hvy. Machine Gun 17982 | -6/Factory | Repaired Imp. Heavy Treads 18945 | -6/Factory | Build established: Tank 19041 | -6/Factory | Lost 4 parts (1n1u2w) 19242 | -6/Factory | Found Prototype Launcher 19242 | -6/Factory | Identified Rocket Array 19345 | -6/Factory | Repaired Imp. Heavy Treads? 19437 | -6/Factory | Repaired Lyr. Medium Armor Plating 19664 | -6/Factory | Identified exit to Garrison 19666 | -6/Factory | Entered Garrison 19800 | -6/Garrison | Expanded RIF knowledge: Structural Interface 19815 | -6/Garrison | Triggered checkpoint 19866 | -6/Garrison | Garrison Relay disabled 20073 | -6/Garrison | Triggered checkpoint 20100 | -6/Garrison | Spotted B-75 Beast 20122 | -6/Garrison | Destroyed B-75 Beast 20202 | -6/Garrison | Triggered checkpoint 20215 | -6/Garrison | Triggered checkpoint 20263 | -6/Garrison | Destroyed 7 combat bots 20450 | -6/Garrison | Build established: Scavenger-Tank 20466 | -6/Garrison | Triggered checkpoint 20479 | -6/Garrison | Garrison Relay disabled 20493 | -6/Garrison | Discovered new exit (range 12) 20516 | -6/Garrison | Triggered checkpoint 20538 | -6/Garrison | Discovered new exit (range 18) 20538 | -6/Garrison | Discovered new exit (range 67) 20538 | -6/Garrison | Discovered new exit (range 91) 20716 | -6/Garrison | Triggered checkpoint 20802 | -6/Garrison | Spotted B-75 Beast 20839 | -6/Garrison | Destroyed B-75 Beast 20869 | -6/Garrison | Found Relay Coupler [Proto] 20874 | -6/Garrison | Found Relay Coupler [Proto] 20878 | -6/Garrison | Found Relay Coupler [Proto] 20882 | -6/Garrison | Found Relay Coupler [Proto] 21382 | -6/Garrison | Entered Extension 21614 | -6/Extension | Build established: Botlord-Tank 21935 | -6/Extension | Rescued a captive Derelict 21971 | -6/Extension | Rescued a captive Derelict 22051 | -6/Extension | Rescued A7 22093 | -6/Extension | Rescued a captive Derelict 22290 | -6/Extension | Spotted B-75 Beast 22302 | -6/Extension | Allies destroyed B-75 Beast 22316 | -6/Extension | Spotted B-75 Beast 22328 | -6/Extension | Allies destroyed B-75 Beast 22455 | -6/Extension | Rescued a captive Derelict 22497 | -6/Extension | Rescued a captive Derelict 22497 | -6/Extension | Rescued a captive Derelict 22880 | -6/Extension | Discovered new exit (range 10) 22881 | -6/Extension | Discovered new exit (range 6) 22955 | -6/Extension | Entered Cetus 22955 | -6/Cetus | Accompanied by 22 allies (A7) 22960 | -6/Cetus | Acquired a Cetus Manufacturing Module code from A7 22980 | -6/Cetus | Spotted Cetus Guard 22980 | -6/Cetus | Spotted Cetus Guard 22988 | -6/Cetus | Spotted Cetus Guard 22988 | -6/Cetus | Spotted Cetus Guard 22992 | -6/Cetus | Destroyed Cetus Guard 22994 | -6/Cetus | Allies destroyed Cetus Guard 23005 | -6/Cetus | Allies destroyed Cetus Guard 23005 | -6/Cetus | Allies destroyed Cetus Guard 23034 | -6/Cetus | Lost 4 allies 23104 | -6/Cetus | Started Cetus Manufacturing Module 23115 | -6/Cetus | Escorted A7 to Cetus Mainframe 23129 | -6/Cetus | Manufactured an Enhanced Grunt 23139 | -6/Cetus | Discovered new exit (range 15) 23154 | -6/Cetus | Manufactured an Enhanced Grunt 23169 | -6/Cetus | Spotted Cetus Guard 23169 | -6/Cetus | Spotted Cetus Guard 23174 | -6/Cetus | Spotted Cetus Guard 23175 | -6/Cetus | Spotted Cetus Guard 23179 | -6/Cetus | Manufactured an Enhanced Grunt 23195 | -6/Cetus | Destroyed Cetus Guard 23196 | -6/Cetus | Allies destroyed Cetus Guard 23198 | -6/Cetus | Allies destroyed Cetus Guard 23204 | -6/Cetus | Manufactured an Enhanced Grunt 23204 | -6/Cetus | Discovered new exit (range 15) 23218 | -6/Cetus | Met Revision 17 23229 | -6/Cetus | Manufactured an Enhanced Grunt 23229 | -6/Cetus | Lost 4 allies 23269 | -6/Cetus | Build established: Commander-Tank 23322 | -6/Cetus | Entered Archives 23322 | -6/Archives | Accompanied by 18 allies (A7) 23327 | -6/Archives | Received a hacking code to weaken MAIN.C 23391 | -6/Archives | Met Zhirov 23397 | -6/Archives | Reinforcements dispatched to Archives 23407 | -6/Archives | Discovered new exit (range 13) 23437 | -6/Archives | Entered Hub_04(d) 23437 | -6/Hub_04(d) | Accompanied by 12 allies 23515 | -6/Hub_04(d) | Discovered new exit (range 15) 23559 | -6/Hub_04(d) | Identified exit to Garrison 23655 | -6/Hub_04(d) | Network Hub disabled 23736 | -6/Hub_04(d) | Build established: Bothacker-Tank 23792 | -6/Hub_04(d) | Spotted Lightning 23792 | -6/Hub_04(d) | Assimilated Lightning with formatsys_high 23795 | -6/Hub_04(d) | Spotted Lightning 23801 | -6/Hub_04(d) | Assimilated Lightning with formatsys_high 23806 | -6/Hub_04(d) | Spotted Lightning 23831 | -6/Hub_04(d) | Garrison activated, responded to threat 23852 | -6/Hub_04(d) | Destroyed Lightning 23933 | -6/Hub_04(d) | Found Prototype Energy Cannon 23958 | -6/Hub_04(d) | Entered Garrison 23958 | -6/Garrison | Accompanied by 8 allies 24102 | -6/Garrison | Triggered checkpoint 24164 | -6/Garrison | Garrison Relay disabled 24237 | -6/Garrison | Discovered new exit (range 51) 24237 | -6/Garrison | Discovered new exit (range 58) 24237 | -6/Garrison | Discovered new exit (range 45) 24256 | -6/Garrison | Spotted B-75 Beast 24274 | -6/Garrison | Allies destroyed B-75 Beast 24304 | -6/Garrison | Triggered checkpoint 24321 | -6/Garrison | Found Prototype Device 24321 | -6/Garrison | Identified Exp. EM Shield 24337 | -6/Garrison | Lost 4 allies 24342 | -6/Garrison | Found Prototype Energy Cannon 24342 | -6/Garrison | Identified EMDS (x2) 24353 | -6/Garrison | Triggered checkpoint 24394 | -6/Garrison | Triggered checkpoint 24494 | -6/Garrison | Expanded RIF knowledge: Watcher Feeds 24548 | -6/Garrison | Found embedded Infiltrators 24572 | -6/Garrison | Build established: Scavenger-Tank 24728 | -6/Garrison | Triggered checkpoint 24766 | -6/Garrison | Garrison Relay disabled 24964 | -6/Garrison | P-70 Sage assimilated allied EB-89A(x) 25106 | -6/Garrison | Triggered checkpoint 25190 | -6/Garrison | Spotted Executioner 25193 | -6/Garrison | Spotted Executioner 25205 | -6/Garrison | Destroyed Executioner 25211 | -6/Garrison | Destroyed Executioner 25223 | -6/Garrison | System corruption reached 10% 25255 | -6/Garrison | System corruption reached 30% 25279 | -6/Garrison | Found Corrupted Prototype Device 25279 | -6/Garrison | Identified Adv. Kinecellerator 25318 | -6/Garrison | Entered Factory 25318 | -5/Factory | Accompanied by 2 allies 25318 | -5/Factory | Evolved 2 slots: Propulsion x1, Utility x1 25593 | -5/Factory | P-70 Sage assimilated allied XC-LFZ(h) 25944 | -5/Factory | Watched by a mysterious "MATRIX" hacker 26016 | -5/Factory | Discovered new exit (range 5) 26279 | -5/Factory | Discovered new exit (range 11) 26576 | -5/Factory | Repaired Centrium Medium Armor Plating? 26626 | -5/Factory | Found Prototype Processor 26626 | -5/Factory | Identified Exp. Targeting Computer 26652 | -5/Factory | Lost 3 allies 26776 | -5/Factory | Build established: Scavenger-Gunner 26785 | -5/Factory | Fabricated Centrium Heavy Treads? 27239 | -5/Factory | Identified exit to Garrison 27241 | -5/Factory | Entered Garrison 27343 | -5/Garrison | Triggered checkpoint 27385 | -5/Garrison | Rescued a captive Derelict 27401 | -5/Garrison | Garrison Relay disabled 27437 | -5/Garrison | Triggered checkpoint 27560 | -5/Garrison | Triggered checkpoint 27560 | -5/Garrison | Triggered checkpoint 27587 | -5/Garrison | System corruption reached 10% 27608 | -5/Garrison | Destroyed 13 combat bots 27690 | -5/Garrison | Triggered checkpoint 27780 | -5/Garrison | Garrison Relay disabled 27842 | -5/Garrison | Discovered new exit (range 15) 28074 | -5/Garrison | Build established: Botlord-Gunner 28092 | -5/Garrison | Discovered new exit (range 26) 28092 | -5/Garrison | Discovered new exit (range 33) 28092 | -5/Garrison | Discovered new exit (range 54) 28145 | -5/Garrison | Expanded RIF knowledge: Coupler Efficiency 28239 | -5/Garrison | Triggered checkpoint 28271 | -5/Garrison | Triggered checkpoint 28333 | -5/Garrison | Garrison Relay disabled 28432 | -5/Garrison | Entered Factory 28432 | -4/Factory | Accompanied by 4 allies 28432 | -4/Factory | Evolved 2 slots: Propulsion x1, Utility x1 28601 | -4/Factory | Build established: Botlord-Tank 28682 | -4/Factory | Lost 3 allies 28724 | -4/Factory | Discovered new exit (range 10) 29400 | -4/Factory | Discovered new exit (range 14) 29421 | -4/Factory | Manually triggered Chute Trap 29421 | -4/Factory | Sucked down chute 29421 | -4/Factory | Entered Waste 29436 | -4/Waste | EMP discharged 29454 | -4/Waste | Spotted C-40 Crusher 29461 | -4/Waste | Spotted C-40 Crusher 29464 | -4/Waste | Spotted C-40 Crusher 29464 | -4/Waste | Spotted C-40 Crusher 29476 | -4/Waste | Spotted C-40 Crusher 29476 | -4/Waste | Spotted C-40 Crusher 29503 | -4/Waste | Discovered new exit (range 16) 29528 | -4/Waste | Entered Factory 29953 | -4/Factory | Fabricated A-27 Freighter? 30092 | -4/Factory | Identified exit to Garrison 30311 | -4/Factory | Found Prototype Hackware 30380 | -4/Factory | Identified exit to Garrison 30380 | -4/Factory | Entered Garrison 30444 | -4/Garrison | Triggered checkpoint 30454 | -4/Garrison | Garrison Relay disabled 30538 | -4/Garrison | Triggered checkpoint 30633 | -4/Garrison | Spotted B-86 Titan 30647 | -4/Garrison | Assimilated Titan 7a with formatsys_high 30650 | -4/Garrison | Triggered checkpoint 30689 | -4/Garrison | Triggered checkpoint 30730 | -4/Garrison | Triggered checkpoint 30757 | -4/Garrison | Destroyed 15 combat bots 30840 | -4/Garrison | Triggered checkpoint 30909 | -4/Garrison | Triggered checkpoint 30992 | -4/Garrison | Expanded RIF knowledge: Threat Obfuscation 31070 | -4/Garrison | Discovered new exit (range 11) 31078 | -4/Garrison | Spotted B-86 Titan 31137 | -4/Garrison | Destroyed B-86 Titan 31374 | -4/Garrison | Discovered new exit (range 63) 31374 | -4/Garrison | Discovered new exit (range 48) 31374 | -4/Garrison | Discovered new exit (range 36) 31409 | -4/Garrison | Triggered checkpoint 31474 | -4/Garrison | Rescued a captive Derelict 31476 | -4/Garrison | Rescued a captive Derelict 31494 | -4/Garrison | Spotted B-86 Titan 31531 | -4/Garrison | Entered Factory 31531 | -4/Factory | Accompanied by 1 ally 32071 | -4/Factory | Found Exp. Signal Interpreter 32140 | -4/Factory | Discovered new exit (range 10) 32171 | -4/Factory | Build established: Scavenger-Tank 32281 | -4/Factory | First assault squad dispatched 32304 | -4/Factory | Discovered new exit (range 5) 32312 | -4/Factory | Identified exit to Garrison 32312 | -4/Factory | Entered Garrison 32312 | -4/Garrison | Accompanied by 1 ally 32363 | -4/Garrison | Expanded RIF knowledge: Autooverride 32474 | -4/Garrison | Triggered checkpoint 32585 | -4/Garrison | Garrison Relay disabled 32694 | -4/Garrison | Triggered checkpoint 32722 | -4/Garrison | Spotted B-86 Titan 32741 | -4/Garrison | Destroyed B-86 Titan 32742 | -4/Garrison | Lost 4 allies 32760 | -4/Garrison | Triggered checkpoint 32779 | -4/Garrison | Triggered checkpoint 32827 | -4/Garrison | Lost 3 allies 32882 | -4/Garrison | Build established: Botlord-Tank 33006 | -4/Garrison | Found Fusion Bomb Launcher 33034 | -4/Garrison | Triggered checkpoint 33057 | -4/Garrison | Lost 3 allies 33098 | -4/Garrison | Garrison Relay disabled 33132 | -4/Garrison | Discovered new exit (range 2) 33430 | -4/Garrison | Triggered checkpoint 33439 | -4/Garrison | Garrison Relay disabled 33495 | -4/Garrison | Discovered new exit (range 5) 33517 | -4/Garrison | Spotted Striker 33535 | -4/Garrison | Destroyed Striker 33580 | -4/Garrison | Destroyed Executioner 33589 | -4/Garrison | Found Exp. Targeting Computer 33593 | -4/Garrison | Found Prototype Processor 33593 | -4/Garrison | Identified Exp. Core Analyzer 33615 | -4/Garrison | Rewired Striker 33762 | -4/Garrison | Spotted B-86 Titan 33837 | -4/Garrison | Expanded RIF knowledge: Autoassimilate 33856 | -4/Garrison | Build established: Scavenger-Tank 33982 | -4/Garrison | Discovered new exit (range 14) 34010 | -4/Garrison | Triggered checkpoint 34053 | -4/Garrison | Discovered new exit (range 91) 34053 | -4/Garrison | Discovered new exit (range 68) 34053 | -4/Garrison | Discovered new exit (range 6) 34061 | -4/Garrison | Garrison Relay disabled 34124 | -4/Garrison | Entered Research 34124 | -3/Research | Evolved 2 slots: Power x1, Utility x1 34249 | -3/Research | Identified exit to Armory 34249 | -3/Research | Identified exit to Testing 34324 | -3/Research | Revision forces began assault on 0b10 34327 | -3/Research | Build established: Botlord-Tank 34348 | -3/Research | Met up with Revision 17++ 34362 | -3/Research | Discovered new exit (range 17) 34824 | -3/Research | Research terminal network offline 34932 | -3/Research | Entered Testing 35027 | -3/Testing | Identified exit to Garrison 35176 | -3/Testing | Found Prototype Hackware 35196 | -3/Testing | Identified Exp. Hacking Suite (x2) 35196 | -3/Testing | Central database locked down 35250 | -3/Testing | Found Prototype Hackware 35289 | -3/Testing | Identified Exp. System Shield 35357 | -3/Testing | Found Prototype Ballistic Cannon 35357 | -3/Testing | Identified Perforator 35540 | -3/Testing | Repaired Broken Adv. Heavy Siege Treads 35595 | -3/Testing | Repaired Lyr. Medium Armor Plating 35686 | -3/Testing | Spotted Striker 35690 | -3/Testing | Spotted Striker 35824 | -3/Testing | Rewired PY-FPYE8B0CBF 35903 | -3/Testing | Found Prototype Ballistic Cannon 35903 | -3/Testing | Identified Omega Cannon 36079 | -3/Testing | Found Prototype Energy Cannon 36079 | -3/Testing | Identified Null Cannon 36290 | -3/Testing | Repaired Adv. Cooling System 36531 | -3/Testing | Found Prototype Device 36531 | -3/Testing | Identified 2N-1CE's Frost Array 36730 | -3/Testing | Discovered new exit (range 13) 36948 | -3/Testing | Found Prototype Protection 36948 | -3/Testing | Identified Lgt. Regenerative Plating 36953 | -3/Testing | Found Prototype Protection 37017 | -3/Testing | Entered Garrison 37057 | -3/Garrison | Triggered checkpoint 37083 | -3/Garrison | Triggered checkpoint 37112 | -3/Garrison | Garrison Relay disabled 37209 | -3/Garrison | Rewired Executioner 37225 | -3/Garrison | Rewired Executioner 37399 | -3/Garrison | Triggered checkpoint 37427 | -3/Garrison | Spotted B-86 Titan 37433 | -3/Garrison | Lost 3 allies 37452 | -3/Garrison | Destroyed B-86 Titan 37482 | -3/Garrison | Found embedded Infiltrators 37577 | -3/Garrison | Garrison Relay disabled 37673 | -3/Garrison | Triggered checkpoint 37674 | -3/Garrison | Triggered checkpoint 37703 | -3/Garrison | Triggered checkpoint 37786 | -3/Garrison | Discovered new exit (range 10) 37812 | -3/Garrison | Expanded RIF knowledge: Coupler Efficiency 37865 | -3/Garrison | Triggered checkpoint 37962 | -3/Garrison | Spotted B-86 Titan 38004 | -3/Garrison | Lost 3 allies 38091 | -3/Garrison | Discovered new exit (range 10) 38141 | -3/Garrison | Triggered checkpoint 38148 | -3/Garrison | Garrison Relay disabled 38302 | -3/Garrison | Discovered new exit (range 16) 38319 | -3/Garrison | Triggered checkpoint 38339 | -3/Garrison | Identified exit to Research 38343 | -3/Garrison | Entered Research 38343 | -2/Research | Evolved 2 slots: Utility x2 38344 | -2/Research | Identified SHELL Armor 38658 | -2/Research | Build established: Botlord-Skirmisher 39126 | -2/Research | Build established: Botlord-Gunner 39701 | -2/Research | Discovered new exit (range 14) 39894 | -2/Research | Build established: Botlord-Tank 39915 | -2/Research | Identified exit to Quarantine 39916 | -2/Research | Entered Quarantine 40166 | -2/Quarantine | Repaired Hyp. Mass Driver+ 40319 | -2/Quarantine | System corruption reached 10% 40340 | -2/Quarantine | Scanned by Researcher 40707 | -2/Quarantine | Discovered new exit (range 20) 40773 | -2/Quarantine | Build established: Botlord-Skirmisher 40944 | -2/Quarantine | Identified exit to Access 41068 | -2/Quarantine | Found Alien Artifact 41087 | -2/Quarantine | Cryocooling Duct disabled 41102 | -2/Quarantine | Ambient heat levels rising (+20) 41102 | -2/Quarantine | Non-combat units ordered to evacuate 41164 | -2/Quarantine | Found Alien Reactor 41256 | -2/Quarantine | Found Alien Energy Cannon 41538 | -2/Quarantine | Found Prototype Processor 41538 | -2/Quarantine | Identified Exp. Armor Integrity Analyzer 41590 | -2/Quarantine | Found Alien Artifact 41597 | -2/Quarantine | Found Alien Artifact 41720 | -2/Quarantine | Spotted Fortress 41840 | -2/Quarantine | Discovered new exit (range 6) 41840 | -2/Quarantine | Discovered new exit (range 6) 41847 | -2/Quarantine | Identified exit to Protoforge 41985 | -2/Quarantine | Entered Protoforge 42025 | -2/Protoforge | Build established: Scavenger-Gunner 42144 | -2/Protoforge | Discovered exit to Access (range 11) 42152 | -2/Protoforge | Superfortress began startup sequence 42303 | -2/Protoforge | Identified Dimensional Node Initializer 42303 | -2/Protoforge | Initialized slip node 42426 | -2/Protoforge | Spotted B-90 Cyclops 42428 | -2/Protoforge | Assimilated Cyclops 9a with formatsys_high 42437 | -2/Protoforge | Spotted Overlord 42448 | -2/Protoforge | Spotted Immortal 42448 | -2/Protoforge | Spotted Immortal 42448 | -2/Protoforge | Spotted Immortal 42448 | -2/Protoforge | Spotted Hotshot 42453 | -2/Protoforge | Allies destroyed Overlord 42461 | -2/Protoforge | Destroyed Immortal 42475 | -2/Protoforge | Allies destroyed Immortal 42476 | -2/Protoforge | Destroyed Immortal 42476 | -2/Protoforge | Allies destroyed Hotshot 42491 | -2/Protoforge | Found Corrupted Prototype Device 42491 | -2/Protoforge | Identified Cep. Antimissile System 42527 | -2/Protoforge | Found Prototype Processor 42527 | -2/Protoforge | Identified Exp. Melee Analysis Suite 42531 | -2/Protoforge | Found Prototype Device 42531 | -2/Protoforge | Identified Exp. Cloaking Device 42583 | -2/Protoforge | Destroyed Cyclops 9a 42595 | -2/Protoforge | Spotted Immortal 42599 | -2/Protoforge | Spotted Immortal 42602 | -2/Protoforge | Spotted Immortal 42613 | -2/Protoforge | Destroyed Immortal 42617 | -2/Protoforge | Destroyed Immortal 42644 | -2/Protoforge | Destroyed Immortal 42778 | -2/Protoforge | Identified Matter Drive 42786 | -2/Protoforge | Crushed by falling debris 42789 | -2/Protoforge | Additional patrols dispatched to research labs 42799 | -2/Protoforge | Build established: Scavenger-Tank 42816 | -2/Protoforge | Identified Transdimensional Reconstructor 42822 | -2/Protoforge | Found Prototype Device 42822 | -2/Protoforge | Identified Crosscalibrator 42837 | -2/Protoforge | Spotted Immortal 42845 | -2/Protoforge | Spotted Decapitator 42845 | -2/Protoforge | Spotted Decapitator 42845 | -2/Protoforge | Spotted Decapitator 42845 | -2/Protoforge | Spotted Decapitator 42854 | -2/Protoforge | Destroyed Decapitator 42854 | -2/Protoforge | Destroyed Decapitator 42854 | -2/Protoforge | Destroyed Decapitator 42861 | -2/Protoforge | Destroyed Decapitator 42961 | -2/Protoforge | Destroyed Immortal 42992 | -2/Protoforge | Identified Core Cannon 42992 | -2/Protoforge | Identified Subatomic Replicator 43007 | -2/Protoforge | Found Faulty Exp. Terror Saw 43012 | -2/Protoforge | Found Cep. Helical Railcannon 43018 | -2/Protoforge | Found Faulty Cep. Lightning Penetrator 43023 | -2/Protoforge | Found Faulty Cep. Deflector Sword 43029 | -2/Protoforge | Found Cep. Deflector Sword 43034 | -2/Protoforge | Found Cep. Plasma Driver 43043 | -2/Protoforge | Found Faulty Cep. Plasma Driver 43052 | -2/Protoforge | Found Faulty Cep. Disintegration Ray 43059 | -2/Protoforge | Found Cep. Disintegration Ray 43222 | -2/Protoforge | Spotted Immortal 43222 | -2/Protoforge | Spotted Immortal 43223 | -2/Protoforge | Spotted Immortal 43226 | -2/Protoforge | Spotted Immortal 43246 | -2/Protoforge | Destroyed Immortal 43273 | -2/Protoforge | Destroyed Immortal 43288 | -2/Protoforge | Destroyed Immortal 43294 | -2/Protoforge | Destroyed Immortal 43309 | -2/Protoforge | Found Cep. Antimissile System 43312 | -2/Protoforge | Found Exp. Jetlance 43423 | -2/Protoforge | Forge Plexus network access discovered 43510 | -2/Protoforge | Found Cep. Smart ZDS 43515 | -2/Protoforge | Found Cep. Tiamat Rocket Array 43572 | -2/Protoforge | Spotted Immortal 43572 | -2/Protoforge | Spotted Immortal 43604 | -2/Protoforge | Destroyed Immortal 43614 | -2/Protoforge | Core integrity fell below 50% 43620 | -2/Protoforge | Destroyed Immortal 43635 | -2/Protoforge | Found Cep. Core Shell 43904 | -2/Protoforge | System corruption reached 30% 44067 | -2/Protoforge | Spotted V895-s 44078 | -2/Protoforge | Destroyed V895-s 44089 | -2/Protoforge | Spotted Immortal 44107 | -2/Protoforge | Destroyed Immortal 44116 | -2/Protoforge | Found Cep. RG22 Armor 44127 | -2/Protoforge | Found Cep. Core Shell 44266 | -2/Protoforge | Found Cep. Antigrav Storage Unit 44271 | -2/Protoforge | Found Cep. Matter Streamer 44279 | -2/Protoforge | Found Cep. Chromion Battery 44300 | -2/Protoforge | Found Cep. NT7 Matterbank 44349 | -2/Protoforge | Destroyed AP7-3 44352 | -2/Protoforge | Destroyed AP7-3 44445 | -2/Protoforge | Found Faulty Cep. Cloak Mesh 44451 | -2/Protoforge | Found Cep. Thermoelectric Network 44547 | -2/Protoforge | Found Faulty Cep. Cloak Mesh 44549 | -2/Protoforge | Found Cep. Core Analysis Suite 44557 | -2/Protoforge | Found Faulty Cep. Core Analysis Suite 44570 | -2/Protoforge | Found Cld. Directed Potential Cannon 44753 | -2/Protoforge | Used Subatomic Replicator to replicate Cep. Nanofilaments [Endoweave] 44754 | -2/Protoforge | Found Cep. Nanofilaments [Endoweave] 44754 | -2/Protoforge | Installed Cep. Nanofilaments [Endoweave], 5 resistances modified: KI +10%, TH +10%, EX -50%, S -20%, P +20% 44758 | -2/Protoforge | Installed Cep. Nanofilaments [Endoweave], 5 resistances modified: KI +10%, TH +10%, EX -50%, S -20%, P +20% 44778 | -2/Protoforge | Found Transdimensional Reconstructor 44985 | -2/Protoforge | First assault squad dispatched 44993 | -2/Protoforge | Spotted Decapitator 45002 | -2/Protoforge | Destroyed Decapitator 45005 | -2/Protoforge | Spotted Decapitator 45007 | -2/Protoforge | Destroyed Decapitator 45055 | -2/Protoforge | Spotted V545-k 45081 | -2/Protoforge | Destroyed V545-k 45083 | -2/Protoforge | Spotted V596-t 45084 | -2/Protoforge | Destroyed V596-t 45172 | -2/Protoforge | Found Faulty Cep. Biometal Exoskeleton 45179 | -2/Protoforge | Found Faulty Cep. Biometal Exoskeleton 45332 | -2/Protoforge | Found Cep. Zero-point Core 45343 | -2/Protoforge | Crushed by falling debris 45356 | -2/Protoforge | Crushed by falling debris 45358 | -2/Protoforge | Crushed by falling debris 45389 | -2/Protoforge | Lost 4 parts (1p3u) 45589 | -2/Protoforge | Found Cep. Plasma Driver 45593 | -2/Protoforge | Found Cep. Helical Railcannon 45600 | -2/Protoforge | Warped through subspace to slip node 45602 | -2/Protoforge | Found Cep. XC Strikerail 45669 | -2/Protoforge | Entered Access 45669 | -1/Access | Evolved 2 slots: Utility x2 45744 | -1/Access | Targeted by mysterious "MATRIX" hacker 46168 | -1/Access | Spotted B-99 Colossus 46182 | -1/Access | Destroyed B-99 Colossus 46252 | -1/Access | Discovered new exit (range 6) 46266 | -1/Access | Spotted B-99 Colossus 46277 | -1/Access | Destroyed B-99 Colossus 46290 | -1/Access | Spotted B-99 Colossus 46296 | -1/Access | Destroyed B-99 Colossus 46520 | *** | Escaped! Last Messages --------------- 46504_ U-05 Engineer builds a Wall. 46505_ R-10 Processor collects Lgt. Quantum Reactor. 46506_ U-05 Engineer builds a Wall. 46507_ R-10 Processor collects Adv. Heat Sink. 46508_ U-05 Engineer lays Concrete. 46509_ >> Watcher Feeds: Established visual feed link with W-44 Eye. 46509_ U-05 Engineer lays Concrete. 46510_ Jacked M-36 Artificer... >>formatsys_low Rerouting network defenses. Erasing system data. Installing primary routines, ETC: 6. 46510_ R-10 Processor collects Myomer Leg. 46510_ U-05 Engineer builds a Wall. 46511_ Reactivated Artificer 10a. 46513_ R-10 Processor collects Myomer Leg. 46514_ U-05 Engineer lays Concrete. 46517_ U-05 Engineer builds a Wall. 46519_ U-05 Engineer lays Concrete. Map ----- +----------------------------------------------------+ | "" # + ??????????????????????????????????? | | " # #???????????????????????????????????? | | ######""### #???????????????????? #?????????????? | | ######"#### ##############????? #?????????????? | | # #??? #?????????????? | | ^ % # ## #?????????????? | | ^ ##### # + #?????????????? | | ==] #?# # ######## #?????????????? | | =] #?# # "" #??????????????????????? | | =] "##?#t # """" #??????????????????????? | | ##??# # """" #??????????????? ??? | | #???# # """" #??????????????# #?? | | % #???#% # """" +??????????????# #?? | | ##"""##???# # """" #??????????????# #?? | | % ######## + #??????????????# #?? | | " # k# #??????????????# #?? | | ######## ##### # ""##??????????????# #?? | | #?????## # # # ####???????????????# ]#?? | | ##???### # # #####??????????????????# #?? | | "#??## #w #### ## ##########??######### #?? | | ##??# ## u"""T""" "??" # #?? | | ! #??## ## """ """ """" # #?? | | #??# # # """"####? | | #??# # """" #? | | #??# # "" """" # | | #??## # @" " "" + | | #??## # A u """ # | | #???# # R R ""##" #? | | #???# # m "" #####" " | | ###"#??# #w """" #???#" " | | #### #?## ####### ##########??#########???## # | | ###??# # # ##??###????????????????????????# # | | #????### ###??????????????????????????????" # | | #????### ##???????????????????????????????" #? | | #?#### # ##???????????????????????????????" #? | | #?# ## ##???????????????????????????????" #? | | ###### # u##??????????????????????????????? ? | | # ##??????????????????????????????? = ? | | # ##???????????????????????????????*%!? | | # #/######???????????????????????????????? % ? | | # # ?????????????????????????????? ? | | # # [ /??????????????????????????#"?? | | + # ##?????????????????????????? ?? | | " # #?????????????????????????????? | | " # #?????????????????????????????? | | ##"" ##############?????????????????????????????? | | """ #?????????????????????????????????????????? | | #?????????????????????????????????????????? | | "?????????????????????????????????????????? | | """ ! # ????????????????????????????????????????? | +----------------------------------------------------+ Best States ------------- Heat Dissipation 152 Coolant Potential 100 Energy Generation 71 Energy Capacity 1770 Matter Stores 300 Matter Capacity 300 Sight Range 23 Robot Scan Range 18 Terrain Scan Density 10 Jamming Range 12 Cloak Strength 9 Armor Coverage 2000 Resistance: KI 20 Resistance: TH 20 Resistance: EM 75 Resistance: P 40 Core Shielding 90 Point Defense Rating 480 Projectile Deflection 15 Weapon Cycling 25 Evasion (%) 67 Targeting Accuracy 12 Target Analysis 5 Core Analysis 16 Armor Integrity Analysis 50 Recoil Reduction 6 Kinecelleration 50 Offensive Hacking 12 Defensive Hacking 12 Relay Coupler Types 4 Relay Coupler Value 100 Trap Extractor Capacity 6 Item Schematics ----------------- Myomer Leg | -8/Materials | Scanalyzed Adv. Cooling System | -6/Extension | Hacked Centrium Heavy Treads | -5/Factory | Scanalyzed Enh. Biometal Leg | -3/Testing | Archive Exp. Hacking Suite | -3/Testing | Archive Cld. Plasma Rifle | -3/Testing | Archive Hvy. Antimatter Reactor | -3/Testing | Archive Adv. Micro-nuke Launcher | -3/Testing | Archive Gui. Micro-nuke Launcher | -2/Quarantine | Archive Cld. Proton Cannon | -2/Quarantine | Archive Robot Schematics ------------------ None Fabricated ------------ Centrium Heavy Treads | x1 | -5/Factory A-27 Freighter | x1 | -4/Factory | Preloaded Repaired ---------- Spk. Treads | 38% | -8/Materials Myomer Leg | 23% | -8/Materials | Broken Imp. Treads | 46% | -8/Materials Enh. Autogun | 49% | -8/Materials Lyr. Medium Armor Plating | 20% | -6/Factory Hvy. Machine Gun | 33% | -6/Factory Imp. Heavy Treads | 57% | -6/Factory Imp. Heavy Treads | 46% | -6/Factory Lyr. Medium Armor Plating | 47% | -6/Factory Centrium Medium Armor Plating | 30% | -5/Factory Adv. Heavy Siege Treads | 21% | -3/Testing | Broken Lyr. Medium Armor Plating | 38% | -3/Testing Adv. Cooling System | 35% | -3/Testing Hyp. Mass Driver | 34% | -2/Quarantine Studied --------- Imp. Ion Engine | -8/Materials | Hacked Imp. Treads | -8/Materials | Hacked Lgt. Treads | -8/Materials | Hacked KE Penetrator | -6/Factory | Hacked Hyp. Mass Driver | -4/Factory | Hacked HERF Cannon | -4/Factory | Hacked Fusion Bomb Launcher | -3/Testing | Hacked Particle Reactor | -3/Testing | Hacked Com. HERF Cannon | -2/Quarantine | Hacked Enh. Nova Cannon | -2/Quarantine | Hacked Alien Tech Used ----------------- Dimensional Node Initializer Matter Drive Subatomic Replicator Concept Nanofilaments [Endoweave] Transdimensional Reconstructor Achievements -------------- None Challenges ------------ None Game ------ Seed ForceForceMount Manual? 0 Play Time 05:59:11 Cumulative 2317.2 hours Start 2026.08.31 @ 14:00:07 End 2026.09.02 @ 03:25:19 Sessions 7 Manual Loads 0 Difficulty Rogue Special Mode None Game No. 1440 Rogue 1436 Adventurer 4 Explorer 0 Win Type 0 Total 336 Types 251/15/27/11/4/1/6/10/7/4 Lore% 99 Gallery% 96 Achievement% 95 Wizard Run 0 Options --------- Layout 2 ASCII 0 Keyboard 1 Movement Vi Keybinds 0 Fullscreen 0 Font 24/Terminus Map View 59x48 Zoom Use 0% Tactical HUD 1 Map Filters NONE Filters NONE Steam 1 RUN: f3bba4f5-0809-401b-ab7a-23219bf29d0e